{"text_format":"1","workbook":"xlsx","n_sheets":2,"sheets":["2 POINT CHARGE","2024 HealthFlex Rates"],"not_rendered":{"charts":0,"images":3,"macros":1,"external_links":0,"defined_names":13,"comments":0,"pivot_tables":0},"unopened":[],"bounds":{"document_bytes":16777216,"sheet_cells":100000,"rows_first":2000,"rows_last":500,"rows_between":2000,"halvings":0,"cell_chars":16384,"cell_head_chars":4096},"cells_cut":0,"cells_raw":0,"read":"whole","date_system":"1900"}

{"sheet":"2 POINT CHARGE","index":0,"n_rows":302,"n_cols":92,"rows_kept":302,"cut":false,"hidden":false,"merged":[[18,63,19,63],[2,87,2,90],[3,66,4,66],[3,67,4,67],[3,68,4,68],[3,69,4,69],[3,70,4,70],[3,72,3,77],[3,79,3,81],[3,83,3,85],[2,6,2,8],[2,10,2,12],[4,15,4,21],[11,13,11,16],[5,14,5,20],[1,63,2,63],[9,14,9,20],[8,17,8,20],[10,17,10,20],[11,17,11,20],[6,3,6,13],[7,3,7,16],[8,3,8,16],[10,3,10,16],[11,3,11,12],[6,14,6,20],[7,17,7,20],[19,28,22,34],[4,2,4,13],[16,2,16,20],[14,3,14,12],[12,3,12,12],[25,28,28,28],[12,1,13,1],[14,1,15,1],[12,22,13,22],[24,28,24,30],[25,2,25,20],[26,17,26,20],[27,17,27,20],[14,28,14,34],[25,34,28,34],[25,32,28,32],[25,33,28,33],[13,3,13,12],[15,3,15,16],[29,33,32,33],[29,34,32,34],[12,13,13,16],[14,13,14,16],[12,17,13,20],[22,17,22,20],[23,17,23,20],[14,17,14,20],[18,17,18,20],[19,17,19,20],[25,29,28,29],[25,30,28,30],[31,2,31,20],[32,2,32,20],[29,24,30,26],[29,29,32,29],[29,32,30,32],[29,30,32,30],[29,28,30,28],[32,25,33,25],[32,26,33,26],[17,2,17,20],[18,2,18,16],[19,2,19,16],[71,1,71,3],[71,5,71,8],[71,10,71,16],[70,1,70,26],[59,21,59,23],[62,0,62,1],[20,17,20,20],[61,6,61,11],[55,9,55,13],[58,9,58,13],[27,2,27,16],[28,2,28,20],[29,2,29,20],[30,2,30,20],[34,2,34,20],[35,2,35,20],[20,2,20,16],[21,2,21,20],[22,2,22,16],[23,2,23,16],[26,2,26,16],[42,2,42,13],[43,2,43,13],[33,2,33,20],[36,2,36,20],[37,2,37,13],[38,2,38,13],[39,2,39,13],[40,2,40,13],[41,2,41,13],[40,17,40,20],[41,17,41,20],[37,14,37,20],[39,14,39,16],[40,14,40,16],[41,14,41,16],[38,17,38,20],[39,17,39,20],[38,14,38,16],[63,1,66,26],[67,1,68,26],[44,2,44,13],[45,2,45,20],[46,2,46,20],[42,17,42,20],[43,17,43,20],[44,17,44,20],[42,14,42,16],[43,14,43,16],[56,21,56,23],[51,5,51,10],[44,14,44,16]]}
[null,"2024 Compensation Form - Two -Point Charge",null,null,null,null,null,null,null,null,null,null,null,null,null,null,null,null,null,null,null,null,null,null,null,null,null,null,null,null,null,null,null,null,null,null,null,null,null,null,null,null,null,"CLERGY_DATA_BASE",null,null,null,null,"CHARGE_DATA_BASE",null,null,null,null,null,null,null,null,null,null,"LOOKUP TABLE",null,null,null,"DROPDOWN",null,null,"LOOKUP TABLE"]
[null,null,null,null,null,null,null,null,null,null,null,null,null,null,null,null,null,null,null,null,null,null,null,null,null,null,null,null,null,null,null,null,null,null,null,null,null,null,null,null,null,null,null,1,{"$f":"+AR2+1","v":2},{"$f":"+AS2+1","v":3},{"$f":"+AT2+1","v":4},null,1,{"$f":"+AW2+1","v":2},3,4,5,6,7,8,9,null,null,"HEALTHFLEX_ELIGIBLE",null,"$BK$5:$BM$26",null,"In Name Manager:\nHealthFlex_Coverage",null,null,"In Name Manager: HEALTHFLEX_RATES",null,null,null,"$BL$6:$BO$9"]
[null,"Effective Dates:",null,null,null,"From:","2024-01-01",null,null,"To:","2024-12-31",null,null,null,null,null,null,null,null,null,null,null,null,null,null,null,null,null,null,null,null,null,null,null,null,null,null,null,null,null,null,null,null,"CLERGY_NAMES_SORT","CONF_RELATION_CODE","APPT_TITLE","PERCENT_SRVC",null,"CHARGE_NAME_SORT","DISTRICT","CONFCHURCHID","CHURCH_1_NAME","CHURCH_1_RGC","CHURCH_2_NAME","CHURCH_2_RGC","CHURCH_3_NAME","CHURCH_3_RGC",null,null,1,2,3,null,null,null,null,1,2,3,4,null,null,"INPUT FOR CALCULATIONS",null,null,null,null,null,null,null,null,null,null,null,null,null,null,"Base Salary for Income Limit =",null,null,null,76221]
[null,null,null,null,null,null,null,null,null,null,null,null,null,null,null,null,null,null,null,null,null,null,null,null,null,null,null,null,null,null,null,null,null,null,null,null,null,null,null,null,null,null,null,"Select Pastor's Name",null,null,null,null,"SELECT CHARGE'S NAME",null,null,null,null,null,null,null,null,null,null,"CONF_REL_ID","CONF_RELATION","Eligible",null,"Pastor Only",null,null,null,"Maximum Cost of Insurance","Minimum Cost of Insurance","Minimum \nBill to Church","Max Church Electiion Amount",null,"MEDICAL PLANS COST PER MONTH",null,null,null,null,null,null,"DENTAL PLANS COST PER MONTH",null,null,null,"VISION PLANS COST PER MONTH",null,null,null,"PENSION_BENEFITS"]
[null,"Line #","Part I - General, Pastor, and Charge",null,null,null,null,null,null,null,null,null,null,null,null,"Info & Calculations",null,null,null,null,null,null,"Line #","Charge Expense",null,null,null,null,null,null,null,null,null,null,null,null,null,null,null,null,null,null,null,"Adams, Jason Elliot","FE","Senior Pastor",1,null,"Alice / Mathis","Coastal Bend District",2010,"Alice: First","No","Mathis","No",null,null,null,null,"AM","Associate Member","Yes",null,"Pastor Plus One",null,null,null,null,null,null,null,null,"B1000","C2000","C3000","H2000","H2500","H5000",null,"HMO","Passive PPO","Dental PPO",null,"Exam Core","Full Service","Premier",null,null,null,"% SERVICE","Income Limit","Amount"]
[null,1,"Pastor Name",null,"(Select green cell, then use drop-down button to find pastor's name.) >",null,null,null,null,null,null,null,null,null,"Select Pastor's Name",null,null,null,null,null,null,null,{"$f":"+B6","v":1},null,null,null,null,null,null,null,null,null,null,null,null,null,null,null,null,null,null,null,null,"Aguilar, Peter Michael","FE","Senior Pastor",1,null,"Altair: Wesley Chapel","Crossroads District",3000,"Altair: Wesley Chapel","No",null,null,null,null,null,null,"FD","Deacon in full connection","Yes",null,"Pastor Plus Family",null,null,"Pastor Only",11904,{"$f":"IF((((MIN(BU6:BZ6))*12)<BR6),BR6,((MIN(BU6:BZ6))*12))","v":11904},11904,{"$f":"BP6-BR6","v":0},null,1140,1094,953,1067,916,860,null,16,48,39,null,0,8,14,null,"CPP",null,1,{"$f":"2*CN3","v":152442},0.03]
[null,2,null,"Appointment Title",null,null,null,null,null,null,null,null,null,null,{"$f":"VLOOKUP($O$6,$AR$5:$AU$394,3)","v":0},null,null,null,null,null,null,null,2,null,null,null,null,null,null,null,null,null,null,null,null,null,null,null,null,null,null,null,null,"Alejandro, Edith","PL","Senior Pastor",0.25,null,"Aransas Pass UMC","Coastal Bend District",2020,"Aransas Pass","No",null,null,null,null,null,null,"FE","Elder in full connection","Yes",null,null,null,null,"Pastor Plus Family",{"$f":"ROUND(((MAX(BU7:BZ7)+MAX(CB7:CD7)+MAX(CF7:CH7))*12),0)","v":37728},{"$f":"(MIN(BU7:BZ7))*12","v":26832},11904,{"$f":"BP7-BR7","v":25824},null,2964,2845,2478,2774,2383,2236,null,53,144,117,null,0,20,36,null,"CRSP Defined Benefit",null,1,"none",6132]
[null,3,null,"Conference Relationship",null,null,null,null,null,null,null,null,null,null,null,null,null,{"$f":"VLOOKUP($O$6,$AR$5:$AU$394,2)","v":0},null,null,null,null,3,null,null,null,null,null,null,null,null,null,null,null,null,null,null,null,null,null,null,null,null,"Alejandro, Ezekiel","PL","Senior Pastor",0.25,null,"Austin New Church","Capital District",1075,"Austin New Church","No",null,null,null,null,null,null,"FL","Full time Local Pastor","Yes",null,null,null,null,"Pastor Plus One",{"$f":"ROUND(((MAX(BU8:BZ8)+MAX(CB8:CD8)+MAX(CF8:CH8))*12),0)","v":27420},{"$f":"(MIN(BU8:BZ8))*12","v":19608},11904,{"$f":"BP8-BR8","v":15516},null,2166,2079,1811,2027,1741,1634,null,30,96,78,null,0,13,23,null,"CRSP Defined Contribution",null,1,"none",0.03]
[null,{"$f":"+B8+1","v":4},null,"% Service  (Full Time=100%, 3/4 time=75%, half time=50%, quarter time=25%)",null,null,null,null,null,null,null,null,null,null,null,null,null,{"$f":"VLOOKUP($O$6,$AR$5:$AU$394,4)","v":0},null,null,null,null,4,null,null,null,null,null,null,null,null,null,null,null,null,null,null,null,null,null,null,null,null,"Allen, Robert Meredith","RE","Assoc. Pastor",0.75,null,"Austin: Berkeley UMC","Capital District",1010,"Austin: Berkeley","No",null,null,null,null,null,null,"LY",null,"No",null,"DROPDOWN",null,null,"Maximum cost = Highest Cost Medical + Highest Cost Dental + Highest Cost Vision",null,null,null,null,null,null,null,null,null,null,null,null,null,null,null,null,null,null,null,null,"UMPIP",null,"< 100%","none",0.09]
[null,5,"Charge Name",null,"(Select green cell, then use drop-down button to find Name of Charge) >",null,null,null,null,null,null,null,null,null,"SELECT CHARGE'S NAME",null,null,null,null,null,null,null,5,null,null,null,null,null,null,null,null,null,null,null,null,null,null,null,null,null,null,null,null,"Altman, Ray Joseph","FE","Senior Pastor",1,null,"Austin: Bethany","Capital District",1020,"Austin: Bethany","No",null,null,null,null,null,null,"OA","Associate Member of other Conference","Yes",null,"In Name Manager: HOUSING_TYPE",null,null,"Minimum Cost = Lowest Cost Medical"]
[null,6,null,"District",null,null,null,null,null,null,null,null,null,null,null,null,null,{"$f":"VLOOKUP($O$10,$AW$5:$BD$332,2)","v":0},null,null,null,null,6,null,null,null,null,null,null,null,null,null,null,null,null,null,null,null,null,null,null,null,null,"Amerson, James Patrick","FE","Senior Pastor",1,null,"Austin: Covenant UMC","Capital District",1030,"Austin: Covenant","No",null,null,null,null,null,null,"OD","Deacon of other Conference","Yes"]
[null,7,null,"Churches in Charge: Name",null,null,null,null,null,null,null,null,null,{"$f":"VLOOKUP($O$10,$AW$5:$BD$332,4)","v":0},null,null,null,{"$f":"VLOOKUP($O$10,$AW$5:$BD$332,6)","v":0},null,null,null,null,7,null,null,null,null,null,null,null,null,null,null,null,null,null,null,null,null,null,null,null,null,"Angle, Polly Morrison","OF","Senior Pastor",1,null,"Austin: Decker","Capital District",1050,"Austin: Decker","No",null,null,null,null,null,null,"OE","Elder of other conference","Yes",null,"Select Housing Type"]
[null,8,null,"% Service to each Church (similar to Line 4)",null,null,null,null,null,null,null,null,null,0,null,null,null,{"$f":"R9-N13","v":0},null,null,null,null,8,null,null,null,null,null,null,null,null,null,null,null,null,null,null,null,null,null,null,null,null,"Armwood, Jasper Earl","OF","Senior Pastor",0.25,null,"Austin: Emmanuel","Capital District",1060,"Austin: Emmanuel","Yes",null,null,null,null,null,null,"OF","Full member of other denomination","Yes",null,"Parsonage"]
[null,null,null,"(Used to determine share of cost to each church.)",null,null,null,null,null,null,null,null,null,null,null,null,null,null,null,null,null,null,null,null,null,null,null,null,null,null,null,null,null,null,null,null,null,null,null,null,null,null,null,"Aziz, Barbara Kutac","FE","Senior Pastor",1,null,"Austin: First UMC","Capital District",1080,"Austin: First","No",null,null,null,null,null,null,"OR","Elder of other conference - Retired","No",null,"Housing Allowance"]
[null,9,null,"Church is Former Rio Grande Conference (RGC) Legacy Church >",null,null,null,null,null,null,null,null,null,{"$f":"VLOOKUP($O$10,$AW$5:$BD$332,5)","v":0},null,null,null,{"$f":"VLOOKUP($O$10,$AW$5:$BD$332,7)","v":0},null,null,null,null,{"$f":"+B15","v":9},null,null,null,null,null,"CALCULATION AREA THAT WILL NOT BE PRINTED",null,null,null,null,null,null,null,null,null,null,null,null,null,null,"Baird, Dawn Denise","FE","Senior Pastor",1,null,"Austin: Lake Travis","Capital District",1120,"Austin: Lake Travis","No",null,null,null,null,null,null,"PD","Probationary Deacon/Deaconess","Yes",null,"None"]
[null,null,null,"(If \"Yes\", then some benefit expenses are paid through Legacy Funds)",null,null,null,null,null,null,null,null,null,null,null,null,null,null,null,null,null,null,null,null,null,null,null,null,null,null,null,null,null,null,null,null,null,null,null,null,null,null,null,"Balensiefen, Lori Michelle","FD","Assoc. Pastor",1,null,"Austin: Life in the City","Capital District",1125,"Austin: Life In The City","No",null,null,null,null,null,null,"PE","Probationary Elder","Yes"]
[null,"Line #","Part II - Pastor Salary",null,null,null,null,null,null,null,null,null,null,null,null,null,null,null,null,null,null,null,"Line #","Charge Expense",null,null,null,null,null,null,null,null,null,null,null,null,null,null,null,null,null,null,null,"Banda, Amanda","FL","Assoc. Pastor",1,null,"Austin: Memorial","Capital District",1130,"Austin: Memorial","No",null,null,null,null,null,null,"PL","Part time Local Pastor","No"]
[null,10,"Base Salary Paid by Church",null,null,null,null,null,null,null,null,null,null,null,null,null,null,null,null,null,null,null,{"$f":"+B18","v":10},0,null,null,null,null,"Distribution of Cost of Pastor Compensation by Church",null,null,null,null,null,null,null,null,null,null,null,null,null,null,"Baxter Ballou, Becky","FE","Senior Pastor",1,null,"Austin: Northwest Hills","Capital District",1140,"Austin: Northwest Hills","No",null,null,null,null,null,null,"RA","Retired Associate Member","No",null,"DROPDOWN"]
[null,{"$f":"+B18+1","v":11},"Conference or District Salary Support  (must be requested & approved)",null,null,null,null,null,null,null,null,null,null,null,null,null,null,0,null,null,null,null,11,null,null,null,null,null,"Charge Name:",{"$f":"O10","v":"SELECT CHARGE'S NAME"},null,null,null,null,null,null,null,null,null,null,null,null,null,"Beadle, Tracey Bowles","FE","Senior Pastor",1,null,"Austin: Oak Hill UMC","Capital District",1150,"Austin: Oak Hill","No",null,null,null,null,null,null,"RD","Retired Deacon/Deaconess","No",null,"Signature Line - Lay Office of person signing"]
[null,12,"Total Salary to Pastor from Church(es) + Conference/Distrist Salary Support",null,null,null,null,null,null,null,null,null,null,null,null,null,null,{"$f":"X18+R19","v":0},null,null,null,null,12,null,null,null,null,null,"Is the percent of cost of each line item to be the same for all line items for the same church? Adjustments can be made in Line 10.  If \"yes\" enter \"YES\".  If \"NO\" enter \"NO\" and adjust percentages in column below. ↓",null,null,null,null,null,null,null,null,null,null,null,null,null,null,"Becker, Laura Hewett","FE","Senior Pastor",1,null,"Austin: Simpson UMC","Capital District",1170,"Austin: Simpson","No",null,null,null,null,null,null,"RE","Retired Elder","No"]
[null,13,"Type of Housing Supplied by Church to Pastor",null,null,null,null,null,null,null,null,null,null,null,null,null,null,"None",null,null,null,null,13,{"$f":"IF(X22>0,(IF($R$21=\"Housing Allowance\",\" \",\"< ERROR. Change Line 13 or 14.\")),\" \")","v":" "},null,null,null,null,null,null,null,null,null,null,null,null,null,null,null,null,null,null,null,"Bell, Michael Kent","FL","Senior Pastor",1,null,"Austin: St. John's","Capital District",1180,"Austin: St. John's","No",null,null,null,null,null,null,"RL","Retired Local Pastor","No",null,"Select Office this person holds"]
[null,14,"Housing Allowance supplied instead of Parsonage",null,null,null,null,null,null,null,null,null,null,null,null,null,null,null,null,null,null,null,14,0,null,null,null,null,null,null,null,null,null,null,null,null,null,null,null,null,null,null,null,"Bell, Troy James","RE","Senior Pastor",0.5,null,"Austin: St. Luke","Capital District",1190,"Austin: St. Luke","No",null,null,null,null,null,null,"RP","Retired Probationary Member","No",null,"Church Council Chair"]
[null,15,"Pre-tax deduction from Pastor's Salary for IRS 107 Exclusion as Pastoral Housing Cost",null,null,null,null,null,null,null,null,null,null,null,null,null,null,0,null,null,null,null,15,null,null,null,null,null,null,null,null,null,null,null,null,null,null,null,null,null,null,null,null,"Bergfield, Patricia Mayer","OE","Assoc. Pastor",1,null,"Austin: St. Mark","Capital District",1200,"Austin: St. Mark","No",null,null,null,null,null,null,"SY","Supply Pastor","No",null,"SPPR/PPR Chair"]
[null,16,"Plan Compensation For Pension Purposes",null,null,null,null,null,null,null,null,null,null,null,null,null,null,{"$f":"IF($R$21=\"Parsonage\",+$R$20*1.25,(IF(R21=\"HOUSING ALLOWANCE\",+$R$20+$X$22,R20)))","v":0},null,null,null,null,16,null,null,null,null,null,null,null,null,null,null,"yes",null,null,null,null,null,null,null,null,null,"Bishop, Robyn","PL","Senior Pastor",0.5,null,"Austin: St. Paul's","Capital District",1210,"Austin: St. Paul's","No",null,null,null,null,null,null,"TBS",null,"No",null,"Treasurer"]
[null,"A Full Time Clergy must elect A UMPIP Contribution of at least 1% of Plan Compensation to receive full pension Benefits",null,null,null,null,null,null,null,null,null,null,null,null,null,null,null,null,null,null,null,null,null,null,null,null,null,null,{"$f":"N12","v":0},null,null,null,{"$f":"R12","v":0},null,null,null,null,null,null,null,null,null,null,"Blair, Vallilea","FE","Senior Pastor",1,null,"Austin: St. Peter's UMC","Capital District",1220,"Austin: St. Peter's","No",null,null,null,null,null,null,null,"Unknown","No"]
[null,"Line #","Part III - Pastor and Dependents Health Benefits (HF = HealthFlex)",null,null,null,null,null,null,null,null,null,null,null,null,null,null,null,null,null,null,null,"Line #","Charge Expense",null,null,null,null,"Same \nPercent for Each Line \nItem","Different Percent for Some Line Items","Cost for this Church",null,"Same \nPercent for Each Line \nItem","Different Percent for Some Line Items","Cost for this Church",null,null,null,null,null,null,null,null,"Blanco, David E.","FE","Senior Pastor",1,null,"Austin: Tarrytown UMC","Capital District",1230,"Austin: Tarrytown","No"]
[null,{"$f":"+B24+1","v":17},"Full-Time Clergy is Eligible and Premium Required for HealthFlex Plan",null,null,null,null,null,null,null,null,null,null,null,null,null,null,{"$f":"IF((VLOOKUP($R$8,$BH$5:$BJ$26,3)=\"NO\"),\"NO\",IF($R$9=1,\"YES\",\"NO\"))","v":{"$error":"#N/A"}},null,null,null,null,{"$f":"+B27","v":17},null,null,null,null,null,null,null,null,null,null,null,null,null,null,null,null,null,null,null,null,"Blaylock, Lisa Marie","FE","Dir. Campus Ministry",1,null,"Austin: Trinity UMC","Capital District",1240,"Austin: Trinity","No"]
[null,{"$f":"B27+1","v":18},"Pastor's HealthFlex Benefit Coverage Tier Selection",null,null,null,null,null,null,null,null,null,null,null,null,null,null,"Pastor Only",null,null,null,null,{"$f":"+B28","v":18},null,null,null,null,null,null,null,null,null,null,null,null,null,null,null,null,null,null,null,null,"Boehk, Karen Sue","RE","Senior Pastor",0.5,null,"Austin: University","Capital District",1250,"Austin: University","No"]
[null,{"$f":"B28+1","v":19},"Church's Clergy HF Premium Credit Responsibility for Full-Time Appointment",null,null,null,null,null,null,null,null,null,null,null,null,null,null,null,null,null,null,null,{"$f":"+B29","v":19},{"$f":"IF(R27=\"NO\",\"0\",(VLOOKUP($R$28,HealthFlex_Rates,4)))","v":{"$error":"#N/A"}},null,null,null,null,null,null,null,null,null,null,null,null,null,null,null,null,null,null,null,"Booth, Theresa Marie","FL","Assoc. Pastor",1,null,"Austin: Wesley UMC","Capital District",1260,"Austin: Wesley","No"]
[null,{"$f":"B29+1","v":20},"Optional \"Church Contribution\" for Dependent Coverage - Enter Amount",null,null,null,null,null,null,null,null,null,null,null,null,null,null,null,null,null,null,null,{"$f":"+B30","v":20},0,{"$f":"IF(($X$30)>(VLOOKUP($R$28,HealthFlex_Rates,5)),\"< ERROR Lower Amount. Total exceeds Max. Cost of Coverage\",\" \")","v":" "},null,null,null,"Percent to use ↓","← Enter Percent to \nuse in Each Line",null,null,"Percent to use ↓","← Enter Percent to use in Each Line",null,null,null,null,null,null,null,null,null,"Boriack, Amy","FL","Senior Pastor",1,null,"Austin: Westlake","Capital District",1270,"Austin: Westlake","No"]
[null,{"$f":"+B30+1","v":21},"Church's Total HealthFlex Cost For This Pastor",null,null,null,null,null,null,null,null,null,null,null,null,null,null,null,null,null,null,null,{"$f":"+B31","v":21},{"$f":"SUM(X29:X30)","v":{"$error":"#N/A"}},null,null,null,null,null,null,null,null,null,null,null,null,null,null,null,null,null,null,null,"Borrego, Daisy San Jorge","FL","Senior Pastor",1,null,"Bandera UMC","Hill Country District",5000,"Bandera","No"]
[null,"Line #","Part IV - Pastor's Accountable Reimbursable Plan (ARP)",null,null,null,null,null,null,null,null,null,null,null,null,null,null,null,null,null,null,null,"Line #","Charge Expense",null,"Expense for each church",null,null,{"$f":"IF(AH24=\"YES\",N13/R9,0)","v":{"$error":"#DIV/0!"}},null,null,null,{"$f":"IF(AH24=\"YES\",R13/R9,0)","v":{"$error":"#DIV/0!"}},null,null,null,null,null,null,null,null,null,null,"Bowdre, Kristen","LY","Deaconess",1,null,"Bastrop UMC","Crossroads District",3010,"Bastrop","No"]
[null,{"$f":"+B31+1","v":22},"Accountable Reimbursement Plan (ARP) Recommendation 13% of base compensation",null,null,null,null,null,null,null,null,null,null,null,null,null,null,null,null,null,null,null,{"$f":"+B33","v":22},0,null,{"$f":"AC25","v":0},{"$f":"AG25","v":0},null,null,null,null,null,{"$f":"IF(AG32<0,\"ERROR\",\" \")","v":{"$error":"#DIV/0!"}},null,null,null,null,null,null,null,null,null,null,"Bowlin, Russell Philip","PE","Senior Pastor",1,null,"Bee Creek UMC","Capital District",1280,"Bee Creek","No"]
[null,"Line #","Part V - Recap of Charge/Church Costs",null,null,null,null,null,null,null,null,null,null,null,null,null,null,null,null,null,null,null,"Line #","Charge Expense",null,null,null,null,null,null,null,null,null,null,null,null,null,null,null,null,null,null,null,"Boyce, Everette Elmo","RE","Senior Pastor",0.25,null,"Beeville: First UMC","Coastal Bend District",2050,"Beeville: First","No"]
[null,{"$f":"+B33+1","v":23},"Salary",null,null,null,null,null,null,null,null,null,null,null,null,null,null,null,null,null,null,null,{"$f":"+B35","v":23},{"$f":"+X18","v":0},null,{"$f":"AE35","v":{"$error":"#DIV/0!"}},{"$f":"AI35","v":{"$error":"#DIV/0!"}},null,{"$f":"IF($AH$24=\"YES\",$AC$32,0)","v":{"$error":"#DIV/0!"}},0.8,{"$f":"IF($AH$24=\"YES\",X35*AC35,X35*AD35)","v":{"$error":"#DIV/0!"}},null,{"$f":"+$AG$32","v":{"$error":"#DIV/0!"}},{"$f":"1-AD35","v":0.19999999999999996},{"$f":"IF($AH$24=\"YES\",X35*AG35,X35*AH35)","v":{"$error":"#DIV/0!"}},null,null,null,null,null,null,null,null,"Brechin, Mark Andrew","FE","Senior Pastor",1,null,"Beeville: Jones Chapel UMC","Coastal Bend District",2060,"Beeville: Jones Chapel","No"]
[null,{"$f":"+B35+1","v":24},"Housing Allowance",null,null,null,null,null,null,null,null,null,null,null,null,null,null,null,null,null,null,null,24,{"$f":"+X22","v":0},null,{"$f":"AE36","v":{"$error":"#DIV/0!"}},{"$f":"AI36","v":{"$error":"#DIV/0!"}},null,{"$f":"IF($AH$24=\"YES\",$AC$32,0)","v":{"$error":"#DIV/0!"}},1,{"$f":"IF($AH$24=\"YES\",X36*AC36,X36*AD36)","v":{"$error":"#DIV/0!"}},null,{"$f":"+$AG$32","v":{"$error":"#DIV/0!"}},0,{"$f":"IF($AH$24=\"YES\",X36*AG36,X36*AH36)","v":{"$error":"#DIV/0!"}},null,null,null,null,null,null,null,null,"Brewer, Timothy Carl","RE","Senior Pastor",1,null,"Bertram","Capital District",1300,"Bertram","No"]
[null,{"$f":"+B36+1","v":25},"Accountable Reimbursement Plan (ARP)",null,null,null,null,null,null,null,null,null,null,null,null,null,null,null,null,null,null,null,25,{"$f":"+$X$33","v":0},null,{"$f":"AE37","v":{"$error":"#DIV/0!"}},{"$f":"AI37","v":{"$error":"#DIV/0!"}},null,{"$f":"IF($AH$24=\"YES\",$AC$32,0)","v":{"$error":"#DIV/0!"}},0.75,{"$f":"IF($AH$24=\"YES\",X37*AC37,X37*AD37)","v":{"$error":"#DIV/0!"}},null,{"$error":"#DIV/0!"},{"$f":"1-AD37","v":0.25},{"$f":"IF($AH$24=\"YES\",X37*AG37,X37*AH37)","v":{"$error":"#DIV/0!"}},null,null,null,null,null,null,null,null,"Brewster, Laura Eileen","FE","District Superintendent",1,null,"Bishop","Coastal Bend District",2080,"Bishop: First","No"]
[null,{"$f":"+B37+1","v":26},null,null,null,null,null,null,null,null,null,null,null,null,"Paid by RGC Legacy Funds",null,null,null,null,null,null,null,26,null,null,null,null,null,null,null,null,null,null,null,null,null,null,null,null,null,null,null,null,"Brooks, Lori Browder","PL","Senior Pastor",0.75,null,"Bloomington","Crossroads District",3035,"Bloomington: First UMC","No"]
[null,{"$f":"+B38+1","v":27},null,null,null,null,null,null,null,null,null,null,null,null,{"$f":"N12","v":0},null,null,{"$f":"R12","v":0},null,null,null,null,27,null,null,null,null,null,null,null,null,null,null,null,null,null,null,null,null,null,null,null,null,"Broome, Cheryl Ann","FE","Senior Pastor",1,null,"Boerne: First","Hill Country District",5020,"Boerne","No"]
[null,28,"Heallth Benefit Expense ",null,null,null,null,null,null,null,null,null,null,null,{"$f":"IF($R$27=\"NO\",0,(IF($N$15=\"Yes\",($BR$6*$N$13),0)))","v":{"$error":"#N/A"}},null,null,{"$f":"IF($R$27=\"NO\",0,(IF($R$15=\"Yes\",($BR$6*$R$13),0)))","v":{"$error":"#N/A"}},null,null,null,null,28,{"$f":"X31","v":{"$error":"#N/A"}},null,{"$error":"#N/A"},{"$error":"#N/A"},null,{"$f":"IF($AH$24=\"YES\",$AC$32,0)","v":{"$error":"#DIV/0!"}},0.8,{"$f":"IF($AH$24=\"YES\",X40*AC40,X40*AD40)","v":{"$error":"#N/A"}},null,{"$error":"#DIV/0!"},{"$f":"IF(AH24=\"YES\",0,1-AD40)","v":0},{"$f":"IF($AH$24=\"YES\",X40*AG40,X40*AH40)","v":{"$error":"#N/A"}},null,null,null,null,null,null,null,null,"Brown, Robert G","PL","Senior Pastor",0.25,null,"Brackettville UMC","West District",7040,"Brackettville","No"]
[null,29,"Comprehensive Protection Plan (CPP)",null,null,null,null,null,null,null,null,null,null,null,{"$f":"IF($N$15=\"YES\",Z41,0)","v":0},null,null,{"$f":"IF($R$15=\"Yes\",AA41,0)","v":0},null,null,null,null,29,{"$f":"IF(R27=\"YES\",IF($R$24>$CM$6,$CM$6*$CN$6,IF(+$R$9=1,$R$24*$CN$6,0)),0)","v":{"$error":"#N/A"}},null,{"$error":"#N/A"},{"$error":"#N/A"},null,{"$f":"IF($AH$24=\"YES\",$AC$32,0)","v":{"$error":"#DIV/0!"}},0.85,{"$f":"IF($AH$24=\"YES\",X41*AC41,X41*AD41)","v":{"$error":"#N/A"}},null,{"$error":"#DIV/0!"},0.15000000000000002,{"$f":"IF($AH$24=\"YES\",X41*AG41,X41*AH41)","v":{"$error":"#N/A"}},null,null,null,null,null,null,null,null,"Bryant, James Lee","SY","Senior Pastor",0.5,null,"Brady: First UMC","West District",7050,"Brady: First","No"]
[null,30,"Clergy Retirement Security  Program (CRSP) defined benefit",null,null,null,null,null,null,null,null,null,null,null,{"$f":"IF($N$15=\"YES\",Z42,0)","v":0},null,null,{"$f":"IF($R$15=\"Yes\",AA42,0)","v":0},null,null,null,null,30,{"$f":"IF($R$27=\"Yes\",IF(+$R$9=1,$CN$7,0),0)","v":{"$error":"#N/A"}},null,{"$error":"#N/A"},{"$error":"#N/A"},null,{"$f":"IF($AH$24=\"YES\",$AC$32,0)","v":{"$error":"#DIV/0!"}},0.7,{"$f":"IF($AH$24=\"YES\",X42*AC42,X42*AD42)","v":{"$error":"#N/A"}},null,{"$error":"#DIV/0!"},0.30000000000000004,{"$f":"IF($AH$24=\"YES\",X42*AG42,X42*AH42)","v":{"$error":"#N/A"}},null,null,null,null,null,null,null,null,"Burke, Kimberly Anne Ladish","FE","Senior Pastor",1,null,"Brownsville: El Buen Pastor","El Valle District",4010,"Brownsville: El Buen Pastor","Yes"]
[null,31,"Clergy Retirement Security  Program (CRSP) defined contribution",null,null,null,null,null,null,null,null,null,null,null,{"$f":"IF($N$15=\"YES\",Z43,0)","v":0},null,null,{"$f":"IF($R$15=\"Yes\",AA43,0)","v":0},null,null,null,null,31,{"$f":"IF($R$27=\"Yes\",IF(+$R$9=1,$R$24*$CN$8,0),0)","v":{"$error":"#N/A"}},null,{"$error":"#N/A"},{"$error":"#N/A"},null,{"$f":"IF($AH$24=\"YES\",$AC$32,0)","v":{"$error":"#DIV/0!"}},0.8,{"$f":"IF($AH$24=\"YES\",X43*AC43,X43*AD43)","v":{"$error":"#N/A"}},null,{"$error":"#DIV/0!"},{"$f":"1-AD43","v":0.19999999999999996},{"$f":"IF($AH$24=\"YES\",X43*AG43,X43*AH43)","v":{"$error":"#N/A"}},null,null,null,null,null,null,null,null,"Burkhalter, Estela Zuniga","FE","Assoc. Pastor",1,null,"Brownsville: First","El Valle District",4030,"Brownsville: First","No"]
[null,32,"UMPIP Church Contribution (for Part Time Appointments)",null,null,null,null,null,null,null,null,null,null,null,{"$f":"IF($N$15=\"YES\",Y42,0)","v":0},null,null,{"$f":"IF($R$15=\"Yes\",AA44,0)","v":0},null,null,null,null,32,{"$f":"IF(LEFT($R$8,1)=\"S\",0,IF(LEFT($R$8,2)=\"OR\",0,(IF(LEFT($R$8,1)=\"R\",0,IF(+$R$9<1,$R$24*CN9,0)))))","v":0},null,{"$error":"#DIV/0!"},{"$error":"#DIV/0!"},null,{"$f":"IF($AH$24=\"YES\",$AC$32,0)","v":{"$error":"#DIV/0!"}},0.8,{"$f":"IF($AH$24=\"YES\",X44*AC44,X44*AD44)","v":{"$error":"#DIV/0!"}},null,{"$error":"#DIV/0!"},{"$f":"1-AD44","v":0.19999999999999996},{"$f":"IF($AH$24=\"YES\",X44*AG44,X44*AH44)","v":{"$error":"#DIV/0!"}},null,null,null,null,null,null,null,null,"Campen, Tanya Eustace","FD","Asst Director of Intergenerational Discipleship",1,null,"Brownsville: Templo Emmanuel","El Valle District",4020,"Brownsville: Templo Emmanuel","Yes"]
[null,33,"Total RGC Legacy Contribution  >",null,null,null,null,null,null,null,null,null,null,null,{"$f":"SUM(O40:Q44)","v":{"$error":"#N/A"}},null,null,{"$f":"SUM(R40:R44)","v":{"$error":"#N/A"}},null,null,null,null,33,null,null,null,null,null,null,null,null,null,null,null,null,null,null,null,null,null,null,null,null,"Cantrell, Mary June","RL","Senior Pastor",0.5,null,"Buchanan Dam: Highland Lakes","Hill Country District",5030,"Buchanan Dam: Highland Lakes","No"]
[null,34,"Church's Total Compensation Expense (Excludes cost of Utilities)",null,null,null,null,null,null,null,null,null,null,null,null,null,null,null,null,null,null,null,34,{"$f":"SUM(X35:X44)","v":{"$error":"#N/A"}},null,{"$f":"SUM(Z35:Z45)","v":{"$error":"#DIV/0!"}},{"$f":"SUM(AA35:AA45)","v":{"$error":"#DIV/0!"}},null,null,null,{"$f":"SUM(AE35:AE44)","v":{"$error":"#DIV/0!"}},null,null,null,{"$f":"SUM(AI35:AI44)","v":{"$error":"#DIV/0!"}},null,null,null,null,null,null,null,null,"Cantu, Juan","FE","Senior Pastor",1,null,"Buda UMC","Hill Country District",5040,"Buda","No"]
[null,35,"Church's Total Compensation Expense (Excludes cost of Utilities) LESS any RGC Legacy Contribution",null,null,null,null,null,null,null,null,null,null,null,null,null,null,null,null,null,null,null,35,{"$f":"X46-(O45+R45)","v":{"$error":"#N/A"}},null,{"$f":"Z46-O45","v":{"$error":"#DIV/0!"}},{"$f":"AA46-R45","v":{"$error":"#DIV/0!"}},null,null,null,null,null,null,null,null,null,null,null,null,null,null,null,null,"Cardona, Matthew","FE","Senior Pastor",1,null,"Burnet UMC","Capital District",1310,"Burnet","No"]
[null,null,null,null,null,null,null,null,null,null,null,null,null,null,null,null,null,null,null,null,null,null,null,null,null,null,null,null,null,null,null,null,null,null,null,null,null,null,null,null,null,null,null,"Careaga, Gricelda B.","PE","Senior Pastor",1,null,"Canyon Lake UMC","Hill Country District",5050,"Canyon Lake","No"]
[null,"Part V Signatures",null,null,null,null,null,null,null,null,null,null,null,null,null,null,null,null,null,null,null,null,null,null,null,null,null,null,null,null,null,null,null,null,null,null,null,null,null,null,null,null,null,"Careaga, Gricelda Garcia","FL","Senior Pastor",1,null,"Canyon Lake: North Shore UMC","Hill Country District",5330,"North Shore","No"]
[null,null,null,null,null,null,null,null,null,null,null,null,null,null,null,null,null,null,null,null,null,null,null,null,null,null,null,null,null,null,null,null,null,null,null,null,null,null,null,null,null,null,null,"Carnesi, Tara","LY","Deaconess",1,null,"Carrizo Springs","Hill Country District",5060,"Carrizo Springs","No"]
[null,null,null,null,null,null,null,null,null,null,null,null,null,null,null,null,null,null,null,null,null,null,null,null,null,null,null,null,null,null,null,null,null,null,null,null,null,null,null,null,null,null,null,"Carter, Aaron M.","FE","Senior Pastor",1,null,"Castroville: Medina Valley UMC","Hill Country District",5070,"Castroville: Medina Valley","No"]
[null,"Pastor's Signature",null,null,"Name:",{"$f":"O6","v":"Select Pastor's Name"},null,null,null,null,null,null,null,null,null,null,null,null,null,null,null,null,null,null,null,"Date:  ",null,null,null,null,null,null,null,null,null,null,null,null,null,null,null,null,null,"Carter, Melvin","PL","Senior Pastor",0.5,null,"CC: Asbury","Coastal Bend District",2110,"CC: Asbury","No"]
[null,null,null,null,null,null,null,null,null,null,null,null,null,null,"Signature ↑",null,null,null,null,null,null,null,null,null,null,null,null,null,null,null,null,null,null,null,null,null,null,null,null,null,null,null,null,"Casar, Maria Fernanda","FL","Senior Pastor",1,null,"CC: El Buen Pastor","Coastal Bend District",2120,"CC: El Buen Pastor","Yes"]
[null,"Local Church Representative Name & Office / Signature: ",null,null,null,null,null,null,null,null,null,null,null,null,null,null,null,null,null,null,null,null,null,null,null,null,null,null,null,null,null,null,null,null,null,null,null,null,null,null,null,null,null,"Cass, Theresa L","PL","Senior Pastor",0.5,null,"CC: First UMC","Coastal Bend District",2130,"CC: First","No"]
[null,null,null,null,null,null,null,null,null,null,null,null,null,null,null,null,null,null,null,null,null,null,null,null,null,null,null,null,null,null,null,null,null,null,null,null,null,null,null,null,null,null,null,"Castles, Peter Van","FL","Senior Pastor",1,null,"CC: Grace","Coastal Bend District",2140,"CC: Grace","No"]
[null,null,null,"Curch Name:",{"$f":"N12","v":0},null,null,null,null,null,null,null,null,null,null,null,null,null,null,null,null,null,null,null,null,"Date:  ",null,null,null,null,null,null,null,null,null,null,null,null,null,null,null,null,null,"Chase, Sylvester E.","FE","Senior Pastor",1,null,"CC: Island in the Son","Coastal Bend District",2150,"CC: Island in the Son","No"]
[null,null,null,null,null,null,null,null,"Printed Name of Signer↑",null,null,null,null,null,"Signature ↑",null,null,null,null,null,null,"Select Office this person holds",null,null,null,null,null,null,null,null,null,null,null,null,null,null,null,null,null,null,null,null,null,"Clark, Robert Lee","RM","Assoc. Pastor",1,null,"CC: Kelsey Memorial","Coastal Bend District",2160,"CC: Kelsey Memorial","Yes"]
[null,null,null,null,null,null,null,null,null,null,null,null,null,null,null,null,null,null,null,null,null,null,null,null,null,null,null,null,null,null,null,null,null,null,null,null,null,null,null,null,null,null,null,"Clifton, Sheri Stice","FE","Senior Pastor",1,null,"CC: St. John's","Coastal Bend District",2170,"CC: St. John's","No"]
[null,null,null,"Curch Name:",{"$f":"R12","v":0},null,null,null,null,null,null,null,null,null,null,null,null,null,null,null,null,null,null,null,null,"Date:  ",null,null,null,null,null,null,null,null,null,null,null,null,null,null,null,null,null,"Cline, Mary E.","FL","Senior Pastor",1,null,"CC: St. Paul","Coastal Bend District",2190,"CC: St. Paul","No"]
[null,null,null,null,null,null,null,null,"Printed Name of Signer↑",null,null,null,null,null,"Signature ↑",null,null,null,null,null,null,"Select Office this person holds",null,null,null,null,null,null,null,null,null,null,null,null,null,null,null,null,null,null,null,null,null,"Cochran, Jack Kai","FL","Senior Pastor",1,null,"CC: St. Peter's by the Sea/CC District","Coastal Bend District",2200,"CC: St. Peter's By The Sea","No"]
[null,null,null,null,null,null,null,null,null,null,null,null,null,null,null,null,null,null,null,null,null,null,null,null,null,null,null,null,null,null,null,null,null,null,null,null,null,null,null,null,null,null,null,"Cochran, John Thomas","FL","Senior Pastor",1,null,"CC: Wesley","Coastal Bend District",2210,"CC: Wesley","No"]
[null,"District Superintendent's Signature",null,null,null,null,null,null,null,null,null,null,null,null,null,null,null,null,null,null,null,null,null,null,null,"Date:  ",null,null,null,null,null,null,null,null,null,null,null,null,null,null,null,null,null,"Collett, David Melville","FD","Senior Pastor",1,null,"Cedar Creek UMC","Crossroads District",3050,"Cedar Creek","No"]
["NOTES:",null,null,null,null,null,"Printed Name ↑",null,null,null,null,null,null,null,"Signature ↑",null,null,null,null,null,null,null,null,null,null,null,null,null,null,null,null,null,null,null,null,null,null,null,null,null,null,null,null,"Collins, Roy D.","PL","Senior Pastor",0.25,null,"Cedar Park: First","Capital District",1320,"Cedar Park: First","No"]
["1.","For calendar year 2024, pastors will have the opportunity to select from several different plans for health coverage.  These selections will be made in Nov 2023 during the Annual Election Period. The church's clergy HealthFlex Premium Credit Responsibility for Full-Time Appointment is $11,904. If the \"Pastor Only\" plan combination is more than $11,904, the pastor will need to fund any excess premium through a pre-tax deduction from salary (Line 10). The church may elect to fund an optional \"Church Contribution\" for all or a portion of Family Dependent Health Coverage (Line 20). Any excess premium for dependent coverage not funded by the church will be funded through a pre-tax premium deduction from salary (Line 10).  ",null,null,null,null,null,null,null,null,null,null,null,null,null,null,null,null,null,null,null,null,null,null,null,null,null,null,null,null,null,null,null,null,null,null,null,null,null,null,null,null,null,"Conkelton, Kelly","PL","Assoc. Pastor",0.25,null,"Cherokee","Hill Country District",5090,"Cherokee","No"]
[null,null,null,null,null,null,null,null,null,null,null,null,null,null,null,null,null,null,null,null,null,null,null,null,null,null,null,null,null,null,null,null,null,null,null,null,null,null,null,null,null,null,null,"Cooper, John Robert","FE","Senior Pastor",1,null,"Columbus: First","Crossroads District",3060,"Columbus: First","No"]
[null,null,null,null,null,null,null,null,null,null,null,null,null,null,null,null,null,null,null,null,null,null,null,null,null,null,null,null,null,null,null,null,null,null,null,null,null,null,null,null,null,null,null,"Cottingham, Stephen Kent","FE","Senior Pastor",1,null,"Columbus: St. Paul","Crossroads District",3070,"Columbus: St. Paul","No"]
[null,null,null,null,null,null,null,null,null,null,null,null,null,null,null,null,null,null,null,null,null,null,null,null,null,null,null,null,null,null,null,null,null,null,null,null,null,null,null,null,null,null,null,"Cruz, Sonia","LY","Deaconess",1,null,"Comfort: Gaddis Memorial","Hill Country District",5100,"Comfort: Gaddis Memorial","No"]
["2.","The pastor may elect to have salary withheld to participate in other benefit  plans offered through the Rio Texas Conference.  These include a pretax \"Flex Plan\" (DCR, HSA,  MRA plans), retirement 403b plan UMPIP, and an optional life insurance plan.   ",null,null,null,null,null,null,null,null,null,null,null,null,null,null,null,null,null,null,null,null,null,null,null,null,null,null,null,null,null,null,null,null,null,null,null,null,null,null,null,null,null,"Cuellar Valenzuela, Ashley","PL","Senior Pastor",0.5,null,"Cross Tracks Church","Capital District",1400,"Cross Tracks Church","No"]
[null,null,null,null,null,null,null,null,null,null,null,null,null,null,null,null,null,null,null,null,null,null,null,null,null,null,null,null,null,null,null,null,null,null,null,null,null,null,null,null,null,null,null,"Dabale, Sadique","FL","Senior Pastor",1,null,"Crystal City: Swindall Memorial","Hill Country District",5120,"Crystal City: Swindall Memorial","Yes"]
[null,null,null,null,null,null,null,null,null,null,null,null,null,null,null,null,null,null,null,null,null,null,null,null,null,null,null,null,null,null,null,null,null,null,null,null,null,null,null,null,null,null,null,"Davis, Curtis Jeffrey","PE","Senior Pastor",1,null,"Cuero/Rabke","Crossroads District",3080,"Cuero: First","No","Rabke","No"]
[3,"The Pastor must provide copies to the Church Treasurer on any enrollment form/s or online benefit elections and the church should verify each monthly invoice to determine that the payroll is correctly handled.",null,null,null,null,null,null,null,null,null,null,null,null,null,null,null,null,null,null,null,null,null,null,null,null,null,null,null,null,null,null,null,null,null,null,null,null,null,null,null,null,null,"Deviney, Forrest Macon","FE","Senior Pastor",1,null,"Del Rio: El Principe de Paz","West District",7110,"Del Rio: Principe de Paz","Yes"]
[null,"Color Code Key >",null,null,null,"Church Enters Data",null,null,null,null,"Calculated Data Entered Automatically",null,null,null,null,null,null,null,"Instructions",null,null,null,null,"Headings",null,null,null,null,null,null,null,null,null,null,null,null,null,null,null,null,null,null,null,"Deviney, Thomas Forrest","FE","Senior Pastor",1,null,"Del Rio: First UMC","West District",7100,"Del Rio: First","No"]
[null,null,null,null,null,null,null,null,null,null,null,null,null,null,null,null,null,null,null,null,null,null,null,null,null,null,null,null,null,null,null,null,null,null,null,null,null,null,null,null,null,null,null,"Dillon, David Wayne","PL","Senior Pastor",0.75,null,"Devine UMC","Las Misiones District",6040,"Devine: First","No"]
[null,null,null,null,null,null,null,null,null,null,null,null,null,null,null,null,null,null,null,null,null,null,null,null,null,null,null,null,null,null,null,null,null,null,null,null,null,null,null,null,null,null,null,"Dobbs, Michael Rea","RE","Senior Pastor",1,null,"Dewville/Guadalupe Regional Hospice Services","Crossroads District",3100,"Dewville","No"]
[null,null,null,null,null,null,null,null,null,null,null,null,null,null,null,null,null,null,null,null,null,null,null,null,null,null,null,null,null,null,null,null,null,null,null,null,null,null,null,null,null,null,null,"Dorantes, Laura","FL","Senior Pastor",1,null,"Dilley:Bethania","Las Misiones District",6060,"Dilley: Bethania","Yes"]
[null,null,null,null,null,null,null,null,null,null,null,null,null,null,null,null,null,null,null,null,null,null,null,null,null,null,null,null,null,null,null,null,null,null,null,null,null,null,null,null,null,null,null,"Duke, Kelly Squyres","FD","Assoc. Pastor",1,null,"Donna: Principe de Paz/Alamo:San Pablo","El Valle District",4050,"Donna: Principe de Paz","Yes","Alamo:San Pablo","Yes"]
[null,null,null,null,null,null,null,null,null,null,null,null,null,null,null,null,null,null,null,null,null,null,null,null,null,null,null,null,null,null,null,null,null,null,null,null,null,null,null,null,null,null,null,"Dyke, Barbara Fruin","FE","Senior Pastor",1,null,"Dripping Springs","Capital District",1350,"Dripping Springs","No"]
[null,null,null,null,null,null,null,null,null,null,null,null,null,null,null,null,null,null,null,null,null,null,null,null,null,null,null,null,null,null,null,null,null,null,null,null,null,null,null,null,null,null,null,"Dykehouse, Pamela Lynn","FE","Senior Pastor",1,null,"Eagle Lake / Garwood: Lehrer Memorial","Crossroads District",3110,"Eagle Lake","No","Garwood: Lehrer Memorial","No"]
[null,null,null,null,null,null,null,null,null,null,null,null,null,null,null,null,null,null,null,null,null,null,null,null,null,null,null,null,null,null,null,null,null,null,null,null,null,null,null,null,null,null,null,"Edgar, David Ellsworth","FE","Senior Pastor",0.5,null,"Eagle Pass: FUMC/Mission Border Hope","Hill Country District",5130,"Eagle Pass","No","Mission Border Hope","No"]
[null,null,null,null,null,null,null,null,null,null,null,null,null,null,null,null,null,null,null,null,null,null,null,null,null,null,null,null,null,null,null,null,null,null,null,null,null,null,null,null,null,null,null,"Edmiston, Elizabeth Miller","PL","Senior Pastor",0.25,null,"Edcouch","El Valle District",4060,"Edcouch: First","No"]
[null,null,null,null,null,null,null,null,null,null,null,null,null,null,null,null,null,null,null,null,null,null,null,null,null,null,null,null,null,null,null,null,null,null,null,null,null,null,null,null,null,null,null,"Engstrom, Cynthia Grilk","FE","Senior Pastor",1,null,"Edinburg: El Buen Pastor","El Valle District",4070,"Edinburg: El Buen Pastor","Yes"]
[null,null,null,null,null,null,null,null,null,null,null,null,null,null,null,null,null,null,null,null,null,null,null,null,null,null,null,null,null,null,null,null,null,null,null,null,null,null,null,null,null,null,null,"Esparza, Chansin","PL","Assoc. Pastor",0.75,null,"Edinburg: First UMC","El Valle District",4080,"Edinburg: First","No"]
[null,null,null,null,null,null,null,null,null,null,null,null,null,null,null,null,null,null,null,null,null,null,null,null,null,null,null,null,null,null,null,null,null,null,null,null,null,null,null,null,null,null,null,"Estus, Christopher Austin","PL","Assoc. Pastor",0.25,null,"Edna: First UMC","Crossroads District",3120,"Edna: First","No"]
[null,null,null,null,null,null,null,null,null,null,null,null,null,null,null,null,null,null,null,null,null,null,null,null,null,null,null,null,null,null,null,null,null,null,null,null,null,null,null,null,null,null,null,"Evans, Destini","PL","Senior Pastor",0.5,null,"Edna: Scruggs","Crossroads District",3130,"Edna: Scruggs Chapel","No"]
[null,null,null,null,null,null,null,null,null,null,null,null,null,null,null,null,null,null,null,null,null,null,null,null,null,null,null,null,null,null,null,null,null,null,null,null,null,null,null,null,null,null,null,"Evans, Stacey Bratton","PL","Senior Pastor",0.25,null,"Eldorado: First / Christoval","West District",7120,"Eldorado: First","No","Christoval","No"]
[null,null,null,null,null,null,null,null,null,null,null,null,null,null,null,null,null,null,null,null,null,null,null,null,null,null,null,null,null,null,null,null,null,null,null,null,null,null,null,null,null,null,null,"Feagins, John Patrick","FE","Senior Pastor",1,null,"Elgin","Crossroads District",3170,"Elgin","No"]
[null,null,null,null,null,null,null,null,null,null,null,null,null,null,null,null,null,null,null,null,null,null,null,null,null,null,null,null,null,null,null,null,null,null,null,null,null,null,null,null,null,null,null,"Feagins, Raquel Cajiri","FE","Assoc. Pastor",1,null,"Elgin: Bethel","Crossroads District",3180,"Elgin: Bethel","Yes"]
[null,null,null,null,null,null,null,null,null,null,null,null,null,null,null,null,null,null,null,null,null,null,null,null,null,null,null,null,null,null,null,null,null,null,null,null,null,null,null,null,null,null,null,"Felps, David Ray","FE","Senior Pastor",1,null,"Elsa","El Valle District",4090,"Elsa: First","Yes"]
[null,null,null,null,null,null,null,null,null,null,null,null,null,null,null,null,null,null,null,null,null,null,null,null,null,null,null,null,null,null,null,null,null,null,null,null,null,null,null,null,null,null,null,"Fischer, Jodi","SY","Senior Pastor",0.25,null,"Fentress","Crossroads District",3200,"Fentress","No"]
[null,null,null,null,null,null,null,null,null,null,null,null,null,null,null,null,null,null,null,null,null,null,null,null,null,null,null,null,null,null,null,null,null,null,null,null,null,null,null,null,null,null,null,"Fletcher, John Vincent","FE","Senior Pastor",1,null,"Floresville UMC","Las Misiones District",6070,"Floresville","No"]
[null,null,null,null,null,null,null,null,null,null,null,null,null,null,null,null,null,null,null,null,null,null,null,null,null,null,null,null,null,null,null,null,null,null,null,null,null,null,null,null,null,null,null,"Fletcher, Mae Elizabeth","RL","Senior Pastor",0.5,null,"Floresville: El Mesias","Las Misiones District",6080,"Floresville: El Mesias","Yes"]
[null,null,null,null,null,null,null,null,null,null,null,null,null,null,null,null,null,null,null,null,null,null,null,null,null,null,null,null,null,null,null,null,null,null,null,null,null,null,null,null,null,null,null,"Franklin, Jesse Andree","FL","Senior Pastor",1,null,"Fredericksburg UMC","Hill Country District",5150,"Fredericksburg","No"]
[null,null,null,null,null,null,null,null,null,null,null,null,null,null,null,null,null,null,null,null,null,null,null,null,null,null,null,null,null,null,null,null,null,null,null,null,null,null,null,null,null,null,null,"Freeman, Jacqueline","PE","Senior Pastor",1,null,"Freer/Bruni","Coastal Bend District",2250,"Freer","No","Bruni","No"]
[null,null,null,null,null,null,null,null,null,null,null,null,null,null,null,null,null,null,null,null,null,null,null,null,null,null,null,null,null,null,null,null,null,null,null,null,null,null,null,null,null,null,null,"Freeman, Marcus Antonio Lucas","FE","District Superintendent",0.5,null,"Ganado/Louise","Crossroads District",3230,"Ganado: First","No","Louise","No"]
[null,null,null,null,null,null,null,null,null,null,null,null,null,null,null,null,null,null,null,null,null,null,null,null,null,null,null,null,null,null,null,null,null,null,null,null,null,null,null,null,null,null,null,"Fuerst, Taylor","FE","Senior Pastor",1,null,"George West UMC","Coastal Bend District",2260,"George West","No"]
[null,null,null,null,null,null,null,null,null,null,null,null,null,null,null,null,null,null,null,null,null,null,null,null,null,null,null,null,null,null,null,null,null,null,null,null,null,null,null,null,null,null,null,"Fulton, Kathleen","PL","Senior Pastor",0.25,null,"Goliad: Fannin St.","Coastal Bend District",2270,"Goliad: Fannin St.","No"]
[null,null,null,null,null,null,null,null,null,null,null,null,null,null,null,null,null,null,null,null,null,null,null,null,null,null,null,null,null,null,null,null,null,null,null,null,null,null,null,null,null,null,null,"Garcia, Octaviano Zapata","PL","Assoc. Pastor",0.5,null,"Gonzales: Evans Chapel/Henson Chapel","Crossroads District",3190,"Evan's Chapel","No","Henson Chapel","No"]
[null,null,null,null,null,null,null,null,null,null,null,null,null,null,null,null,null,null,null,null,null,null,null,null,null,null,null,null,null,null,null,null,null,null,null,null,null,null,null,null,null,null,null,"Garza, Abdon","FL","Assoc. Pastor",1,null,"Granite Shoals: Grace UMC","Hill Country District",5160,"Granite Shoals:  Grace UMC","No"]
[null,null,null,null,null,null,null,null,null,null,null,null,null,null,null,null,null,null,null,null,null,null,null,null,null,null,null,null,null,null,null,null,null,null,null,null,null,null,null,null,null,null,null,"Gause, Jack Chavis","FE","Senior Pastor",1,null,"Gruene UMC","Hill Country District",5165,"Gruene UMC","No"]
[null,null,null,null,null,null,null,null,null,null,null,null,null,null,null,null,null,null,null,null,null,null,null,null,null,null,null,null,null,null,null,null,null,null,null,null,null,null,null,null,null,null,null,"Gideon, Kate","PL","Senior Pastor",0.25,null,"Hallettsville  / Mossy Grove","Crossroads District",3280,"Hallettsville: First","No","Mossy Grove","No"]
[null,null,null,null,null,null,null,null,null,null,null,null,null,null,null,null,null,null,null,null,null,null,null,null,null,null,null,null,null,null,null,null,null,null,null,null,null,null,null,null,null,null,null,"Glenn, Robert Edward","RA","Senior Pastor",1,null,"Hallettsville Circuit","Crossroads District",3560,"Richardson-Brown Chapel","No","Shiner: Johnson's Chapel","No"]
[null,null,null,null,null,null,null,null,null,null,null,null,null,null,null,null,null,null,null,null,null,null,null,null,null,null,null,null,null,null,null,null,null,null,null,null,null,null,null,null,null,null,null,"Glover, Edward E.","SY","Senior Pastor",0.5,null,"Harlingen: El Buen Samaritano","El Valle District",4100,"Harlingen: El Buen Samaritano","Yes"]
[null,null,null,null,null,null,null,null,null,null,null,null,null,null,null,null,null,null,null,null,null,null,null,null,null,null,null,null,null,null,null,null,null,null,null,null,null,null,null,null,null,null,null,"Gonzales, Albert","PL","Senior Pastor",0.5,null,"Harlingen: First UMC","El Valle District",4110,"Harlingen: First","No"]
[null,null,null,null,null,null,null,null,null,null,null,null,null,null,null,null,null,null,null,null,null,null,null,null,null,null,null,null,null,null,null,null,null,null,null,null,null,null,null,null,null,null,null,"Gonzales, Leslie","OF","","",null,"Harlingen: Valley Praise","El Valle District",4120,"Harlingen: Valley Praise","No"]
[null,null,null,null,null,null,null,null,null,null,null,null,null,null,null,null,null,null,null,null,null,null,null,null,null,null,null,null,null,null,null,null,null,null,null,null,null,null,null,null,null,null,null,"Gonzalez, Aaron A.","FE","Chaplain",1,null,"Harlingen: Wesley UMC","El Valle District",4130,"Harlingen: Wesley","No"]
[null,null,null,null,null,null,null,null,null,null,null,null,null,null,null,null,null,null,null,null,null,null,null,null,null,null,null,null,null,null,null,null,null,null,null,null,null,null,null,null,null,null,null,"Gonzalez, Stan","PL","Senior Pastor",0.75,null,"Harper UMC","Hill Country District",5170,"Harper","No"]
[null,null,null,null,null,null,null,null,null,null,null,null,null,null,null,null,null,null,null,null,null,null,null,null,null,null,null,null,null,null,null,null,null,null,null,null,null,null,null,null,null,null,null,"Goodman, Roberta Blackerby","FE","Senior Pastor",1,null,"Harwood / Prairie Lea","Crossroads District",3290,"Harwood","No","Prairie Lea","No"]
[null,null,null,null,null,null,null,null,null,null,null,null,null,null,null,null,null,null,null,null,null,null,null,null,null,null,null,null,null,null,null,null,null,null,null,null,null,null,null,null,null,null,null,"Gotelli, Holly Hatch","FE","Senior Pastor",1,null,"Haynie Chapel","Crossroads District",3300,"Haynie Chapel","No"]
[null,null,null,null,null,null,null,null,null,null,null,null,null,null,null,null,null,null,null,null,null,null,null,null,null,null,null,null,null,null,null,null,null,null,null,null,null,null,null,null,null,null,null,"Graham, Bethany Sue","FD","Transitional Leave",1,null,"Helotes Hills UMC","Las Misiones District",6090,"Helotes Hills","No"]
[null,null,null,null,null,null,null,null,null,null,null,null,null,null,null,null,null,null,null,null,null,null,null,null,null,null,null,null,null,null,null,null,null,null,null,null,null,null,null,null,null,null,null,"Green, Kallie Ellen","FE","Senior Pastor",1,null,"Hilda","West District",7140,"Hilda","No"]
[null,null,null,null,null,null,null,null,null,null,null,null,null,null,null,null,null,null,null,null,null,null,null,null,null,null,null,null,null,null,null,null,null,null,null,null,null,null,null,null,null,null,null,"Guzman, Alvaro","RE","Senior Pastor",0.5,null,"Hope Arise","Las Misiones District",6015,"Hope Arise","No"]
[null,null,null,null,null,null,null,null,null,null,null,null,null,null,null,null,null,null,null,null,null,null,null,null,null,null,null,null,null,null,null,null,null,null,null,null,null,null,null,null,null,null,null,"Hackett, Gregory Allan","RM","","",null,"Hunt UMC","Hill Country District",5190,"Hunt","No"]
[null,null,null,null,null,null,null,null,null,null,null,null,null,null,null,null,null,null,null,null,null,null,null,null,null,null,null,null,null,null,null,null,null,null,null,null,null,null,null,null,null,null,null,"Halfacre, Celia Eileen","FE","Senior Pastor",1,null,"Industry: Cherry Chapel","Crossroads District",3350,"Industry: Cherry Chapel","No"]
[null,null,null,null,null,null,null,null,null,null,null,null,null,null,null,null,null,null,null,null,null,null,null,null,null,null,null,null,null,null,null,null,null,null,null,null,null,null,null,null,null,null,null,"Hamann, Rebecca D.","OD","Assoc. Pastor",0.75,null,"Ingleside UMC","Coastal Bend District",2300,"Ingleside","No"]
[null,null,null,null,null,null,null,null,null,null,null,null,null,null,null,null,null,null,null,null,null,null,null,null,null,null,null,null,null,null,null,null,null,null,null,null,null,null,null,null,null,null,null,"Han, Daesub","FE","Assoc. Pastor",1,null,"Iraan","West District",7150,"Iraan UMC","No"]
[null,null,null,null,null,null,null,null,null,null,null,null,null,null,null,null,null,null,null,null,null,null,null,null,null,null,null,null,null,null,null,null,null,null,null,null,null,null,null,null,null,null,null,"Harrington, Daniel Richard","FE","Senior Pastor",1,null,"Johnson City UMC","Hill Country District",5200,"Johnson City: First","No"]
[null,null,null,null,null,null,null,null,null,null,null,null,null,null,null,null,null,null,null,null,null,null,null,null,null,null,null,null,null,null,null,null,null,null,null,null,null,null,null,null,null,null,null,"Harris, Paul Ellis","FE","Senior Pastor",1,null,"Karnes City","Coastal Bend District",2310,"Karnes City: UMC","No"]
[null,null,null,null,null,null,null,null,null,null,null,null,null,null,null,null,null,null,null,null,null,null,null,null,null,null,null,null,null,null,null,null,null,null,null,null,null,null,null,null,null,null,null,"Harris, William Monroe","FE","Senior Pastor",1,null,"Kempner UMC","Capital District",1370,"Kempner","No"]
[null,null,null,null,null,null,null,null,null,null,null,null,null,null,null,null,null,null,null,null,null,null,null,null,null,null,null,null,null,null,null,null,null,null,null,null,null,null,null,null,null,null,null,"Hathaway, John","PD","Assoc. Pastor",0.25,null,"Kerrville: Barnett Chapel","Hill Country District",5210,"Kerrville: Barnett Chapel","No"]
[null,null,null,null,null,null,null,null,null,null,null,null,null,null,null,null,null,null,null,null,null,null,null,null,null,null,null,null,null,null,null,null,null,null,null,null,null,null,null,null,null,null,null,"Hayes, Terrence Kenyon","RA","Senior Pastor",0.5,null,"Kerrville: First UMC","Hill Country District",5220,"Kerrville: First","No"]
[null,null,null,null,null,null,null,null,null,null,null,null,null,null,null,null,null,null,null,null,null,null,null,null,null,null,null,null,null,null,null,null,null,null,null,null,null,null,null,null,null,null,null,"Healy, Laura","PL","Assoc. Pastor",0.75,null,"Kerrville: St. Paul's UMC","Hill Country District",5230,"Kerrville: St. Paul's","No"]
[null,null,null,null,null,null,null,null,null,null,null,null,null,null,null,null,null,null,null,null,null,null,null,null,null,null,null,null,null,null,null,null,null,null,null,null,null,null,null,null,null,null,null,"Heikes, Laura Jane","FE","Senior Pastor",1,null,"Kingsville: El Buen Pastor","Coastal Bend District",2340,"Kingsville: El Buen Pastor","Yes"]
[null,null,null,null,null,null,null,null,null,null,null,null,null,null,null,null,null,null,null,null,null,null,null,null,null,null,null,null,null,null,null,null,null,null,null,null,null,null,null,null,null,null,null,"Henneke, Glenn","SY","Senior Pastor",0.25,null,"Kingsville: First UMC","Coastal Bend District",2350,"Kingsville: First","No"]
[null,null,null,null,null,null,null,null,null,null,null,null,null,null,null,null,null,null,null,null,null,null,null,null,null,null,null,null,null,null,null,null,null,null,null,null,null,null,null,null,null,null,null,"Henry, Reese Alexandra","FE","Senior Pastor",0.75,null,"Kyle UMC","Hill Country District",5240,"Kyle","No"]
[null,null,null,null,null,null,null,null,null,null,null,null,null,null,null,null,null,null,null,null,null,null,null,null,null,null,null,null,null,null,null,null,null,null,null,null,null,null,null,null,null,null,null,"Herrera, Abigail Parker","FD","Assoc. Pastor",1,null,"La Feria UMC","El Valle District",4140,"La Feria","No "]
[null,null,null,null,null,null,null,null,null,null,null,null,null,null,null,null,null,null,null,null,null,null,null,null,null,null,null,null,null,null,null,null,null,null,null,null,null,null,null,null,null,null,null,"Herrin, Jon","FE","Assoc. Pastor",1,null,"La Feria: Dios es Amor","El Valle District",4150,"La Feria: Dios Es Amor","Yes"]
[null,null,null,null,null,null,null,null,null,null,null,null,null,null,null,null,null,null,null,null,null,null,null,null,null,null,null,null,null,null,null,null,null,null,null,null,null,null,null,null,null,null,null,"Hewell, Audrey Ann","RA","Senior Pastor",0.75,null,"La Grange: First UMC","Crossroads District",3370,"La Grange: First","No"]
[null,null,null,null,null,null,null,null,null,null,null,null,null,null,null,null,null,null,null,null,null,null,null,null,null,null,null,null,null,null,null,null,null,null,null,null,null,null,null,null,null,null,null,"Higginbotham, Phillip","FL","Senior Pastor",1,null,"La Vernia","Las Misiones District",6110,"La Vernia","No"]
[null,null,null,null,null,null,null,null,null,null,null,null,null,null,null,null,null,null,null,null,null,null,null,null,null,null,null,null,null,null,null,null,null,null,null,null,null,null,null,null,null,null,null,"Highland, Patricia S.","FL","Assoc. Pastor",1,null,"LaGrange: St. James","Crossroads District",3380,"La Grange: St. James","No"]
[null,null,null,null,null,null,null,null,null,null,null,null,null,null,null,null,null,null,null,null,null,null,null,null,null,null,null,null,null,null,null,null,null,null,null,null,null,null,null,null,null,null,null,"Hinkebein, John Christopher","FD","Senior Pastor",1,null,"Lakehills UMC","Hill Country District",5250,"Lakehills","No"]
[null,null,null,null,null,null,null,null,null,null,null,null,null,null,null,null,null,null,null,null,null,null,null,null,null,null,null,null,null,null,null,null,null,null,null,null,null,null,null,null,null,null,null,"Horan, Karen Lynn","FE","Executive Director",0.5,null,"Lampasas UMC","Capital District",1380,"Lampasas","No"]
[null,null,null,null,null,null,null,null,null,null,null,null,null,null,null,null,null,null,null,null,null,null,null,null,null,null,null,null,null,null,null,null,null,null,null,null,null,null,null,null,null,null,null,"Hornung, Warren George","RE","Senior Pastor",1,null,"Laredo: First UMC","Las Misiones District",6130,"Laredo: First","No"]
[null,null,null,null,null,null,null,null,null,null,null,null,null,null,null,null,null,null,null,null,null,null,null,null,null,null,null,null,null,null,null,null,null,null,null,null,null,null,null,null,null,null,null,"Hunter, Jacob Earle","FL","Senior Pastor",1,null,"Laredo: La Trinidad","Las Misiones District",6140,"Laredo: La Trinidad","Yes"]
[null,null,null,null,null,null,null,null,null,null,null,null,null,null,null,null,null,null,null,null,null,null,null,null,null,null,null,null,null,null,null,null,null,null,null,null,null,null,null,null,null,null,null,"Jackson, Caroline Jeanet","PL","Supply Pastor",0.75,null,"Leakey","Hill Country District",5260,"Leakey","No"]
[null,null,null,null,null,null,null,null,null,null,null,null,null,null,null,null,null,null,null,null,null,null,null,null,null,null,null,null,null,null,null,null,null,null,null,null,null,null,null,null,null,null,null,"Jackson, Cynthia J.","FL","Senior Pastor",1,null,"Leander UMC","Capital District",1390,"Leander","No"]
[null,null,null,null,null,null,null,null,null,null,null,null,null,null,null,null,null,null,null,null,null,null,null,null,null,null,null,null,null,null,null,null,null,null,null,null,null,null,null,null,null,null,null,"Jackson, Patrick Eugene","FL","Senior Pastor",1,null,"Llano: Lutie Watkins UMC","Hill Country District",5270,"Llano: Lutie Watkins","No"]
[null,null,null,null,null,null,null,null,null,null,null,null,null,null,null,null,null,null,null,null,null,null,null,null,null,null,null,null,null,null,null,null,null,null,null,null,null,null,null,null,null,null,null,"Jacobson, Ryan Douglas","FL","Assoc. Pastor",1,null,"Lockhart: First UMC","Crossroads District",3390,"Lockhart: First","No"]
[null,null,null,null,null,null,null,null,null,null,null,null,null,null,null,null,null,null,null,null,null,null,null,null,null,null,null,null,null,null,null,null,null,null,null,null,null,null,null,null,null,null,null,"Jara, Juan Ortiz","RL","Senior Pastor",0.25,null,"Lockhart: St. Mark / Dale: Corinth","Crossroads District",3090,"Dale: Corinth","No","Lockhart: St. Mark","No"]
[null,null,null,null,null,null,null,null,null,null,null,null,null,null,null,null,null,null,null,null,null,null,null,null,null,null,null,null,null,null,null,null,null,null,null,null,null,null,null,null,null,null,null,"Jara, Nydia Irizarry","RE","Assoc. Pastor",0.25,null,"Lometa/Bend","Capital District",1410,"Lometa","No","Bend","No"]
[null,null,null,null,null,null,null,null,null,null,null,null,null,null,null,null,null,null,null,null,null,null,null,null,null,null,null,null,null,null,null,null,null,null,null,null,null,null,null,null,null,null,null,"Jenson, Gary Ryan","FE","Assoc. Pastor",1,null,"Luling: First UMC","Crossroads District",3420,"Luling: First","No"]
[null,null,null,null,null,null,null,null,null,null,null,null,null,null,null,null,null,null,null,null,null,null,null,null,null,null,null,null,null,null,null,null,null,null,null,null,null,null,null,null,null,null,null,"Jenson, Melissa Suzanne Allen","FE","Assoc. Pastor",1,null,"Luling: Wm Taylor UMC","Crossroads District",3430,"Luling: Wm Taylor","No"]
[null,null,null,null,null,null,null,null,null,null,null,null,null,null,null,null,null,null,null,null,null,null,null,null,null,null,null,null,null,null,null,null,null,null,null,null,null,null,null,null,null,null,null,"Ji, Yanjie","PL","Senior Pastor",0.5,null,"Lyford","El Valle District",4170,"Lyford","No"]
[null,null,null,null,null,null,null,null,null,null,null,null,null,null,null,null,null,null,null,null,null,null,null,null,null,null,null,null,null,null,null,null,null,null,null,null,null,null,null,null,null,null,null,"Jimenez, Cecilio","SY","TBS",0.25,null,"Manchaca UMC","Capital District",1420,"Manchaca","No"]
[null,null,null,null,null,null,null,null,null,null,null,null,null,null,null,null,null,null,null,null,null,null,null,null,null,null,null,null,null,null,null,null,null,null,null,null,null,null,null,null,null,null,null,"Jimenez, Rumaldo","PL","Senior Pastor",0.5,null,"Manor UMC","Crossroads District",3450,"Manor","No"]
[null,null,null,null,null,null,null,null,null,null,null,null,null,null,null,null,null,null,null,null,null,null,null,null,null,null,null,null,null,null,null,null,null,null,null,null,null,null,null,null,null,null,null,"Johnson, Cynthia Andrade","LY","Deaconess",1,null,"Mason: First UMC","West District",7180,"Mason: First","No"]
[null,null,null,null,null,null,null,null,null,null,null,null,null,null,null,null,null,null,null,null,null,null,null,null,null,null,null,null,null,null,null,null,null,null,null,null,null,null,null,null,null,null,null,"Johnson, LyAnna M","OE","Senior Pastor",1,null,"MC: El Divino Redentor","El Valle District",4180,"McAllen: El Divino Redentor","Yes"]
[null,null,null,null,null,null,null,null,null,null,null,null,null,null,null,null,null,null,null,null,null,null,null,null,null,null,null,null,null,null,null,null,null,null,null,null,null,null,null,null,null,null,null,"Johnson, Thomas Adamson","FE","Assoc. Pastor",1,null,"MC: First UMC","El Valle District",4190,"McAllen: First","No"]
[null,null,null,null,null,null,null,null,null,null,null,null,null,null,null,null,null,null,null,null,null,null,null,null,null,null,null,null,null,null,null,null,null,null,null,null,null,null,null,null,null,null,null,"Jones, Kathleen","PL","Senior Pastor",0.5,null,"MC: St. Mark UMC","El Valle District",4200,"McAllen: St. Mark","No"]
[null,null,null,null,null,null,null,null,null,null,null,null,null,null,null,null,null,null,null,null,null,null,null,null,null,null,null,null,null,null,null,null,null,null,null,null,null,null,null,null,null,null,null,"Jones, Todd McNeil","FL","Senior Pastor",1,null,"Melvin","West District",7200,"Melvin","No"]
[null,null,null,null,null,null,null,null,null,null,null,null,null,null,null,null,null,null,null,null,null,null,null,null,null,null,null,null,null,null,null,null,null,null,null,null,null,null,null,null,null,null,null,"Kelley, Jennifer Denyse","PE","","",null,"Mercedes: First","El Valle District",4230,"Mercedes: First","No"]
[null,null,null,null,null,null,null,null,null,null,null,null,null,null,null,null,null,null,null,null,null,null,null,null,null,null,null,null,null,null,null,null,null,null,null,null,null,null,null,null,null,null,null,"Kepler-Karrer, Cynthia Anne","FE","Senior Pastor",1,null,"Mertzon","West District",7220,"Mertzon","No"]
[null,null,null,null,null,null,null,null,null,null,null,null,null,null,null,null,null,null,null,null,null,null,null,null,null,null,null,null,null,null,null,null,null,null,null,null,null,null,null,null,null,null,null,"Kim, Earl","OE","Assoc. Pastor",1,null,"Mission: El Mesias","El Valle District",4240,"Mission: El Mesias","Yes"]
[null,null,null,null,null,null,null,null,null,null,null,null,null,null,null,null,null,null,null,null,null,null,null,null,null,null,null,null,null,null,null,null,null,null,null,null,null,null,null,null,null,null,null,"King, Brad","FL","Assoc. Pastor",1,null,"Mission: First UMC","El Valle District",4250,"Mission: First","No"]
[null,null,null,null,null,null,null,null,null,null,null,null,null,null,null,null,null,null,null,null,null,null,null,null,null,null,null,null,null,null,null,null,null,null,null,null,null,null,null,null,null,null,null,"Kitchens, James","SY","Lay Pastor (PT)",0.25,null,"New Braunfels: First UMC","Hill Country District",5310,"New Braunfels: First","No"]
[null,null,null,null,null,null,null,null,null,null,null,null,null,null,null,null,null,null,null,null,null,null,null,null,null,null,null,null,null,null,null,null,null,null,null,null,null,null,null,null,null,null,null,"Knapp, Adam Ray","FE","Co-Pastor",1,null,"Nixon: Harris Chapel","Crossroads District",3160,"Nixon: Harris Chapel","No"]
[null,null,null,null,null,null,null,null,null,null,null,null,null,null,null,null,null,null,null,null,null,null,null,null,null,null,null,null,null,null,null,null,null,null,null,null,null,null,null,null,null,null,null,"Knapp, Danielle Elizabeth","FE","Co-Pastor",1,null,"Nuevo Pacto","Las Misiones District",6355,"Nuevo Pacto","Yes"]
[null,null,null,null,null,null,null,null,null,null,null,null,null,null,null,null,null,null,null,null,null,null,null,null,null,null,null,null,null,null,null,null,null,null,null,null,null,null,null,null,null,null,null,"Knappage, Amy Canterbury","FL","Senior Pastor",1,null,"Odem: First UMC","Coastal Bend District",2380,"Odem: First","No"]
[null,null,null,null,null,null,null,null,null,null,null,null,null,null,null,null,null,null,null,null,null,null,null,null,null,null,null,null,null,null,null,null,null,null,null,null,null,null,null,null,null,null,null,"Knighten, Randolph","PD","Assoc. Pastor",1,null,"Ozona UMC","West District",7250,"Ozona","No"]
[null,null,null,null,null,null,null,null,null,null,null,null,null,null,null,null,null,null,null,null,null,null,null,null,null,null,null,null,null,null,null,null,null,null,null,null,null,null,null,null,null,null,null,"Kretzler, Joanne Lois","FD","Transitional Leave",1,null,"Paint Rock","West District",7260,"Paint Rock","No"]
[null,null,null,null,null,null,null,null,null,null,null,null,null,null,null,null,null,null,null,null,null,null,null,null,null,null,null,null,null,null,null,null,null,null,null,null,null,null,null,null,null,null,null,"Kwiatkowski, Laurinda","FL","Senior Pastor",1,null,"Palacios UMC","Coastal Bend District",2390,"Palacios","No"]
[null,null,null,null,null,null,null,null,null,null,null,null,null,null,null,null,null,null,null,null,null,null,null,null,null,null,null,null,null,null,null,null,null,null,null,null,null,null,null,null,null,null,null,"Larson, Janet Kay","FE","Senior Pastor",1,null,"Pearsall:San Pablo","Las Misiones District",6180,"Pearsall: San Pablo","Yes"]
[null,null,null,null,null,null,null,null,null,null,null,null,null,null,null,null,null,null,null,null,null,null,null,null,null,null,null,null,null,null,null,null,null,null,null,null,null,null,null,null,null,null,null,"Latimer, Rachel","PD","Assoc. Pastor",1,null,"Pflugerville UMC","Capital District",1440,"Pflugerville","No"]
[null,null,null,null,null,null,null,null,null,null,null,null,null,null,null,null,null,null,null,null,null,null,null,null,null,null,null,null,null,null,null,null,null,null,null,null,null,null,null,null,null,null,null,"Leggett, Richard Lee","FE","Senior Pastor",1,null,"Pharr: La Trinidad","El Valle District",4270,"Pharr: La Trinidad","Yes"]
[null,null,null,null,null,null,null,null,null,null,null,null,null,null,null,null,null,null,null,null,null,null,null,null,null,null,null,null,null,null,null,null,null,null,null,null,null,null,null,null,null,null,null,"LeVine, Kathryn Vanessa","AM","Chaplain",1,null,"Pharr: Nueva Vida","El Valle District",4280,"Pharr: Nueva Vida","Yes"]
[null,null,null,null,null,null,null,null,null,null,null,null,null,null,null,null,null,null,null,null,null,null,null,null,null,null,null,null,null,null,null,null,null,null,null,null,null,null,null,null,null,null,null,"Leyva, Javier","RA","Senior Pastor",1,null,"Point Comfort / Lolita","Coastal Bend District",2420,"Point Comfort","No","Lolita","No"]
[null,null,null,null,null,null,null,null,null,null,null,null,null,null,null,null,null,null,null,null,null,null,null,null,null,null,null,null,null,null,null,null,null,null,null,null,null,null,null,null,null,null,null,"Lind, Melissa","FL","Senior Pastor",1,null,"Port Arthur: Getsemani","Crossroads District",3530,"Port Arthur: Getsemani","Yes"]
[null,null,null,null,null,null,null,null,null,null,null,null,null,null,null,null,null,null,null,null,null,null,null,null,null,null,null,null,null,null,null,null,null,null,null,null,null,null,null,null,null,null,null,"Lirette, Jacqui Elizabeth","FL","Assoc. Pastor",1,null,"Port Isabel: First UMC","El Valle District",4290,"Port Isabel: First UMC","No"]
[null,null,null,null,null,null,null,null,null,null,null,null,null,null,null,null,null,null,null,null,null,null,null,null,null,null,null,null,null,null,null,null,null,null,null,null,null,null,null,null,null,null,null,"Lizcano, Rene","SY","Supply Pastor",0.25,null,"Port Lavaca: First","Coastal Bend District",2430,"Port Lavaca: First","No"]
[null,null,null,null,null,null,null,null,null,null,null,null,null,null,null,null,null,null,null,null,null,null,null,null,null,null,null,null,null,null,null,null,null,null,null,null,null,null,null,null,null,null,null,"Lloyd, Leigh Livingston","FE","Senior Pastor",1,null,"Portland: First UMC","Coastal Bend District",2440,"Portland: First","No"]
[null,null,null,null,null,null,null,null,null,null,null,null,null,null,null,null,null,null,null,null,null,null,null,null,null,null,null,null,null,null,null,null,null,null,null,null,null,null,null,null,null,null,null,"Logan, Cody Alan","FL","Senior Pastor",1,null,"Poteet","Las Misiones District",6200,"Poteet","No"]
[null,null,null,null,null,null,null,null,null,null,null,null,null,null,null,null,null,null,null,null,null,null,null,null,null,null,null,null,null,null,null,null,null,null,null,null,null,null,null,null,null,null,null,"Lopez, Robert M","FE","Assistant to the Episcopal Office",1,null,"Rankin","West District",7270,"Rankin","No"]
[null,null,null,null,null,null,null,null,null,null,null,null,null,null,null,null,null,null,null,null,null,null,null,null,null,null,null,null,null,null,null,null,null,null,null,null,null,null,null,null,null,null,null,"Lott, Michele Marie","FE","Senior Pastor",1,null,"Raymondville:First","El Valle District",4310,"Raymondville: First","No"]
[null,null,null,null,null,null,null,null,null,null,null,null,null,null,null,null,null,null,null,null,null,null,null,null,null,null,null,null,null,null,null,null,null,null,null,null,null,null,null,null,null,null,null,"Luhrs, Glenn Arthur","FE","Senior Pastor",1,null,"Refugio UMC","Coastal Bend District",2460,"Refugio","No"]
[null,null,null,null,null,null,null,null,null,null,null,null,null,null,null,null,null,null,null,null,null,null,null,null,null,null,null,null,null,null,null,null,null,null,null,null,null,null,null,null,null,null,null,"Lumpkin, George Enos","FE","Senior Pastor",1,null,"Rio Grande City: First","El Valle District",4320,"Rio Grande City: First","Yes"]
[null,null,null,null,null,null,null,null,null,null,null,null,null,null,null,null,null,null,null,null,null,null,null,null,null,null,null,null,null,null,null,null,null,null,null,null,null,null,null,null,null,null,null,"Machado, Victor Ramirez","SY","Senior Pastor",0.25,null,"Rockport: First UMC","Coastal Bend District",2490,"Rockport: First","No"]
[null,null,null,null,null,null,null,null,null,null,null,null,null,null,null,null,null,null,null,null,null,null,null,null,null,null,null,null,null,null,null,null,null,null,null,null,null,null,null,null,null,null,null,"Marceau, Linda Proctor","FD","Assoc. Pastor",0.75,null,"Rocksprings: FUMC/Barksdale","West District",null,null,"No"]
[null,null,null,null,null,null,null,null,null,null,null,null,null,null,null,null,null,null,null,null,null,null,null,null,null,null,null,null,null,null,null,null,null,null,null,null,null,null,null,null,null,null,null,"Marchbanks, Hilary","FE","Senior Pastor",1,null,"Rocksprings: FUMC/Barksdale","West District",7290,"Rocksprings: First","No","Barksdale","No"]
[null,null,null,null,null,null,null,null,null,null,null,null,null,null,null,null,null,null,null,null,null,null,null,null,null,null,null,null,null,null,null,null,null,null,null,null,null,null,null,null,null,null,null,"Marks, Robert","OF","","",null,"Rolling Hills Community","Capital District",1450,"Rolling Hills Community","No"]
[null,null,null,null,null,null,null,null,null,null,null,null,null,null,null,null,null,null,null,null,null,null,null,null,null,null,null,null,null,null,null,null,null,null,null,null,null,null,null,null,null,null,null,"Martin, Gary William","RL","Senior Pastor",0.5,null,"San Benito","El Valle District",4340,"San Benito: First","No"]
[null,null,null,null,null,null,null,null,null,null,null,null,null,null,null,null,null,null,null,null,null,null,null,null,null,null,null,null,null,null,null,null,null,null,null,null,null,null,null,null,null,null,null,"Martin, Ruth Aquellis","OE","Senior Pastor",0.5,null,"San Juan: Los Wesleyanos","El Valle District",4360,"San Juan: Los Wesleyanos","Yes"]
[null,null,null,null,null,null,null,null,null,null,null,null,null,null,null,null,null,null,null,null,null,null,null,null,null,null,null,null,null,null,null,null,null,null,null,null,null,null,null,null,null,null,null,"Martin, Sidney Ray","PL","Senior Pastor",0.5,null,"San Marcos: El Buen Pastor","Hill Country District",5350,"San Marcos: El Buen Pastor","Yes"]
[null,null,null,null,null,null,null,null,null,null,null,null,null,null,null,null,null,null,null,null,null,null,null,null,null,null,null,null,null,null,null,null,null,null,null,null,null,null,null,null,null,null,null,"Martinez, Erick","SY","Supply Pastor",0.25,null,"San Marcos: First UMC","Hill Country District",5360,"San Marcos: First","No"]
[null,null,null,null,null,null,null,null,null,null,null,null,null,null,null,null,null,null,null,null,null,null,null,null,null,null,null,null,null,null,null,null,null,null,null,null,null,null,null,null,null,null,null,"Martinez, Jose Rene","SY","Senior Pastor",0.25,null,"San Marcos: Jackson Chapel","Hill Country District",5370,"San Marcos: Jackson Chapel","No"]
[null,null,null,null,null,null,null,null,null,null,null,null,null,null,null,null,null,null,null,null,null,null,null,null,null,null,null,null,null,null,null,null,null,null,null,null,null,null,null,null,null,null,null,"Matthews, Neal","RE","Senior Pastor",0.5,null,"San Saba UMC","West District",7300,"San Saba","No"]
[null,null,null,null,null,null,null,null,null,null,null,null,null,null,null,null,null,null,null,null,null,null,null,null,null,null,null,null,null,null,null,null,null,null,null,null,null,null,null,null,null,null,null,"Mathis, Germaine Tropez","RE","Assoc. Pastor",0.5,null,"SAng: Bethel","West District",7310,"SAng: Bethel","Yes"]
[null,null,null,null,null,null,null,null,null,null,null,null,null,null,null,null,null,null,null,null,null,null,null,null,null,null,null,null,null,null,null,null,null,null,null,null,null,null,null,null,null,null,null,"Mays, Robert","SY","TBS",0.5,null,"SAng: Grape Creek UMC","West District",76901,"SAng: Grape Creek","No"]
[null,null,null,null,null,null,null,null,null,null,null,null,null,null,null,null,null,null,null,null,null,null,null,null,null,null,null,null,null,null,null,null,null,null,null,null,null,null,null,null,null,null,null,"McAvoy, Glen Don","FD","Minister of Music",1,null,"SAng: Sierra Vista UMC","West District",7350,"SAng: Sierra Vista","No"]
[null,null,null,null,null,null,null,null,null,null,null,null,null,null,null,null,null,null,null,null,null,null,null,null,null,null,null,null,null,null,null,null,null,null,null,null,null,null,null,null,null,null,null,"McCorkle, Catherine Otto","FL","Senior Pastor",1,null,"SAng: St. Luke","West District",7360,"SAng: St. Luke","No"]
[null,null,null,null,null,null,null,null,null,null,null,null,null,null,null,null,null,null,null,null,null,null,null,null,null,null,null,null,null,null,null,null,null,null,null,null,null,null,null,null,null,null,null,"McNitzky, Richard Reed","FE","Assoc. Pastor",1,null,"SAng: Wesley Trinity","West District",7370,"SAng: Wesley Trinity","No"]
[null,null,null,null,null,null,null,null,null,null,null,null,null,null,null,null,null,null,null,null,null,null,null,null,null,null,null,null,null,null,null,null,null,null,null,null,null,null,null,null,null,null,null,"Melton, John Scott","SY","Supply Pastor",0.25,null,"SAnt: Alamo","Las Misiones District",6210,"SAnt: Alamo","No"]
[null,null,null,null,null,null,null,null,null,null,null,null,null,null,null,null,null,null,null,null,null,null,null,null,null,null,null,null,null,null,null,null,null,null,null,null,null,null,null,null,null,null,null,"Melton, Patrick J.","PE","Senior Pastor",1,null,"Sant: Alamo Heights","Las Misiones District",6220,"SAnt: Alamo Heights","No"]
[null,null,null,null,null,null,null,null,null,null,null,null,null,null,null,null,null,null,null,null,null,null,null,null,null,null,null,null,null,null,null,null,null,null,null,null,null,null,null,null,null,null,null,"Melville, David","OE","Senior Pastor",0.5,null,"SAnt: Bethany","Las Misiones District",6240,"SAnt: Bethany","No"]
[null,null,null,null,null,null,null,null,null,null,null,null,null,null,null,null,null,null,null,null,null,null,null,null,null,null,null,null,null,null,null,null,null,null,null,null,null,null,null,null,null,null,null,"Mertz, Austin William","FL","Assoc. Pastor",1,null,"SAnt: Bethel UMC","Las Misiones District",6250,"SAnt: Bethel","No"]
[null,null,null,null,null,null,null,null,null,null,null,null,null,null,null,null,null,null,null,null,null,null,null,null,null,null,null,null,null,null,null,null,null,null,null,null,null,null,null,null,null,null,null,"Milan, Aaron","SY","Supply Pastor",0.25,null,"SAnt: Chapel Hill UMC","Las Misiones District",6270,"SAnt: Chapel Hill","No"]
[null,null,null,null,null,null,null,null,null,null,null,null,null,null,null,null,null,null,null,null,null,null,null,null,null,null,null,null,null,null,null,null,null,null,null,null,null,null,null,null,null,null,null,"Miller, Russell Thomas","FD","Senior Pastor",1,null,"SAnt: Chinese UMC","Las Misiones District",6280,"SAnt: Chinese UMC","No"]
[null,null,null,null,null,null,null,null,null,null,null,null,null,null,null,null,null,null,null,null,null,null,null,null,null,null,null,null,null,null,null,null,null,null,null,null,null,null,null,null,null,null,null,"Morriss, Jason Ashley","FL","Senior Pastor",1,null,"SAnt: Christ Fellowship","Las Misiones District",6290,"SAnt: Christ Fellowship","No"]
[null,null,null,null,null,null,null,null,null,null,null,null,null,null,null,null,null,null,null,null,null,null,null,null,null,null,null,null,null,null,null,null,null,null,null,null,null,null,null,null,null,null,null,"Mumme, Michael Christopher","FE","Senior Pastor",1,null,"SAnt: Colonial Hills UMC","Las Misiones District",6310,"SAnt: Colonial Hills","No"]
[null,null,null,null,null,null,null,null,null,null,null,null,null,null,null,null,null,null,null,null,null,null,null,null,null,null,null,null,null,null,null,null,null,null,null,null,null,null,null,null,null,null,null,"Nagle, Josh","PL","Assoc. Pastor",0.25,null,"SAnt: East St. Paul","Las Misiones District",6320,"SAnt: East St. Paul","No"]
[null,null,null,null,null,null,null,null,null,null,null,null,null,null,null,null,null,null,null,null,null,null,null,null,null,null,null,null,null,null,null,null,null,null,null,null,null,null,null,null,null,null,null,"Nelson, Melissa Lee Smith","RE","Senior Pastor",0.5,null,"SAnt: Emanuel","Las Misiones District",6360,"Sant: Emanuel","Yes"]
[null,null,null,null,null,null,null,null,null,null,null,null,null,null,null,null,null,null,null,null,null,null,null,null,null,null,null,null,null,null,null,null,null,null,null,null,null,null,null,null,null,null,null,"Noah, Allen","RA","Senior Pastor",0.5,null,"Sant: Epworth","Las Misiones District",6370,"Sant: Epworth","No"]
[null,null,null,null,null,null,null,null,null,null,null,null,null,null,null,null,null,null,null,null,null,null,null,null,null,null,null,null,null,null,null,null,null,null,null,null,null,null,null,null,null,null,null,"Noseworthy, Denise","PL","Senior Pastor",0.25,null,"SAnt: Ernest T. Dixon","Las Misiones District",6380,"SAnt: Ernest T. Dixon","No"]
[null,null,null,null,null,null,null,null,null,null,null,null,null,null,null,null,null,null,null,null,null,null,null,null,null,null,null,null,null,null,null,null,null,null,null,null,null,null,null,null,null,null,null,"O'Donnell, Monica Nicole","FL","Assoc. Pastor",1,null,"SAnt: Jacob's Chapel","Las Misiones District",6400,"SAnt: Jacob's Chapel","No"]
[null,null,null,null,null,null,null,null,null,null,null,null,null,null,null,null,null,null,null,null,null,null,null,null,null,null,null,null,null,null,null,null,null,null,null,null,null,null,null,null,null,null,null,"Onwiler, Harold Martin","RE","Senior Pastor",0.75,null,"SAnt: La Trinidad","Las Misiones District",6430,"Sant: La Trinidad","Yes"]
[null,null,null,null,null,null,null,null,null,null,null,null,null,null,null,null,null,null,null,null,null,null,null,null,null,null,null,null,null,null,null,null,null,null,null,null,null,null,null,null,null,null,null,"Ortiz, Robert","FE","District Superintendent",1,null,"SAnt: Laurel Heights UMC","Las Misiones District",6440,"SAnt: Laurel Heights UMC","No"]
[null,null,null,null,null,null,null,null,null,null,null,null,null,null,null,null,null,null,null,null,null,null,null,null,null,null,null,null,null,null,null,null,null,null,null,null,null,null,null,null,null,null,null,"Ortiz, Santos","SY","Supply Pastor",0.5,null,"SAnt: Northern Hills UMC","Las Misiones District",6450,"SAnt: Northern Hills","No"]
[null,null,null,null,null,null,null,null,null,null,null,null,null,null,null,null,null,null,null,null,null,null,null,null,null,null,null,null,null,null,null,null,null,null,null,null,null,null,null,null,null,null,null,"Osorio, Juan Crescencio","FE","Senior Pastor",1,null,"SAnt: Oak Meadow UMC","Las Misiones District",6470,"SAnt: Oak Meadow","No"]
[null,null,null,null,null,null,null,null,null,null,null,null,null,null,null,null,null,null,null,null,null,null,null,null,null,null,null,null,null,null,null,null,null,null,null,null,null,null,null,null,null,null,null,"Padilla, Liliana","FE","Director/Counselor",0.75,null,"SAnt: Oxford UMC","Las Misiones District",6480,"SAnt: Oxford","No"]
[null,null,null,null,null,null,null,null,null,null,null,null,null,null,null,null,null,null,null,null,null,null,null,null,null,null,null,null,null,null,null,null,null,null,null,null,null,null,null,null,null,null,null,"Padilla, Mayra Flores","PL","Senior Pastor",0.25,null,"SAnt: Pollard Memorial","Las Misiones District",6490,"Sant: Pollard Memorial","Yes"]
[null,null,null,null,null,null,null,null,null,null,null,null,null,null,null,null,null,null,null,null,null,null,null,null,null,null,null,null,null,null,null,null,null,null,null,null,null,null,null,null,null,null,null,"Padilla, Miguel Angel","FE","Vitality Ctr Dir & Dir of Connectional Ministries",1,null,"SAnt: Resurrection UMC","Las Misiones District",6510,"SAnt: Resurrection UMC","No"]
[null,null,null,null,null,null,null,null,null,null,null,null,null,null,null,null,null,null,null,null,null,null,null,null,null,null,null,null,null,null,null,null,null,null,null,null,null,null,null,null,null,null,null,"Parry, Candice","SY","Lay Pastor (PT)",0.5,null,"SAnt: Sanford Chapel","Las Misiones District",6520,"SAnt: Sanford Chapel","No"]
[null,null,null,null,null,null,null,null,null,null,null,null,null,null,null,null,null,null,null,null,null,null,null,null,null,null,null,null,null,null,null,null,null,null,null,null,null,null,null,null,null,null,null,"Paul, Gertrude Sparks","RL","Assoc. Pastor",0.5,null,"SAnt: Spring Creek","Las Misiones District",6540,"SAnt: Spring Creek","No"]
[null,null,null,null,null,null,null,null,null,null,null,null,null,null,null,null,null,null,null,null,null,null,null,null,null,null,null,null,null,null,null,null,null,null,null,null,null,null,null,null,null,null,null,"Payne, Andrew John","FE","Senior Pastor",1,null,"SAnt: St. John's UMC","Las Misiones District",6560,"SAnt: St. John's","No"]
[null,null,null,null,null,null,null,null,null,null,null,null,null,null,null,null,null,null,null,null,null,null,null,null,null,null,null,null,null,null,null,null,null,null,null,null,null,null,null,null,null,null,null,"Payne, David Erich","FE","Senior Pastor",1,null,"SAnt: St. Mark's UMC","Las Misiones District",6570,"SAnt: St. Mark's","No"]
[null,null,null,null,null,null,null,null,null,null,null,null,null,null,null,null,null,null,null,null,null,null,null,null,null,null,null,null,null,null,null,null,null,null,null,null,null,null,null,null,null,null,null,"Pecina, Roland","SY","Senior Pastor",0.25,null,"SAnt: St. Matthew's UMC","Las Misiones District",6580,"SAnt: St. Matthew's","No"]
[null,null,null,null,null,null,null,null,null,null,null,null,null,null,null,null,null,null,null,null,null,null,null,null,null,null,null,null,null,null,null,null,null,null,null,null,null,null,null,null,null,null,null,"Perales, Robert Aaron","FE","Senior Pastor",1,null,"SAnt: St. Paul UMC","Las Misiones District",6590,"SAnt: St. Paul","No"]
[null,null,null,null,null,null,null,null,null,null,null,null,null,null,null,null,null,null,null,null,null,null,null,null,null,null,null,null,null,null,null,null,null,null,null,null,null,null,null,null,null,null,null,"Perez, Federico","FL","Senior Pastor",1,null,"SAnt: Travis Park UMC","Las Misiones District",6600,"SAnt: Travis Park","No"]
[null,null,null,null,null,null,null,null,null,null,null,null,null,null,null,null,null,null,null,null,null,null,null,null,null,null,null,null,null,null,null,null,null,null,null,null,null,null,null,null,null,null,null,"Perez, Jose Arturo","PL","Senior Pastor",0.25,null,"SAnt: Trinity UMC","Las Misiones District",6610,"SAnt: Trinity","No"]
[null,null,null,null,null,null,null,null,null,null,null,null,null,null,null,null,null,null,null,null,null,null,null,null,null,null,null,null,null,null,null,null,null,null,null,null,null,null,null,null,null,null,null,"Perez-Greene, Margot Ann","FE","Assoc. Pastor",1,null,"SAnt: Westlawn","Las Misiones District",6630,"Sant: Westlawn","Yes"]
[null,null,null,null,null,null,null,null,null,null,null,null,null,null,null,null,null,null,null,null,null,null,null,null,null,null,null,null,null,null,null,null,null,null,null,null,null,null,null,null,null,null,null,"Petersen, Jessica Anne","FD","Transitional Leave",1,null,"SAnt: Windcrest UMC","Las Misiones District",6640,"SAnt: Windcrest","No"]
[null,null,null,null,null,null,null,null,null,null,null,null,null,null,null,null,null,null,null,null,null,null,null,null,null,null,null,null,null,null,null,null,null,null,null,null,null,null,null,null,null,null,null,"Pittman, Carolyn","RL","Senior Pastor",1,null,"Schertz UMC","Las Misiones District",6650,"Schertz","No"]
[null,null,null,null,null,null,null,null,null,null,null,null,null,null,null,null,null,null,null,null,null,null,null,null,null,null,null,null,null,null,null,null,null,null,null,null,null,null,null,null,null,null,null,"Plaza, Rhonda","PL","Senior Pastor",0.5,null,"Schulenburg: Stevens Chapel","Crossroads District",3670,"Stevens Chapel","No"]
[null,null,null,null,null,null,null,null,null,null,null,null,null,null,null,null,null,null,null,null,null,null,null,null,null,null,null,null,null,null,null,null,null,null,null,null,null,null,null,null,null,null,null,"Polk, Kenneth Coleman","FL","Senior Pastor",1,null,"Seadrift","Coastal Bend District",2520,"Seadrift","No"]
[null,null,null,null,null,null,null,null,null,null,null,null,null,null,null,null,null,null,null,null,null,null,null,null,null,null,null,null,null,null,null,null,null,null,null,null,null,null,null,null,null,null,null,"Porterfield, Mark Courtney","FE","Senior Pastor",1,null,"Seguin: La Trinidad","Crossroads District",3600,"Seguin: La Trinidad","Yes"]
[null,null,null,null,null,null,null,null,null,null,null,null,null,null,null,null,null,null,null,null,null,null,null,null,null,null,null,null,null,null,null,null,null,null,null,null,null,null,null,null,null,null,null,"Portwood, Kevin Spencer","FE","Senior Pastor",1,null,"Seguin: Wesley Harper UMC","Crossroads District",3610,"Seguin: Wesley Harper","No"]
[null,null,null,null,null,null,null,null,null,null,null,null,null,null,null,null,null,null,null,null,null,null,null,null,null,null,null,null,null,null,null,null,null,null,null,null,null,null,null,null,null,null,null,"Powell, Wade Alan","FE","Senior Pastor",1,null,"SELECT CHARGE'S NAME"]
[null,null,null,null,null,null,null,null,null,null,null,null,null,null,null,null,null,null,null,null,null,null,null,null,null,null,null,null,null,null,null,null,null,null,null,null,null,null,null,null,null,null,null,"Pruitt, Wilson","FE","Senior Pastor",1,null,"Shiner","Crossroads District",3620,"Shiner: First","No"]
[null,null,null,null,null,null,null,null,null,null,null,null,null,null,null,null,null,null,null,null,null,null,null,null,null,null,null,null,null,null,null,null,null,null,null,null,null,null,null,null,null,null,null,"Ramirez, Nohemi V","FE","Senior Pastor",1,null,"Sinton: First UMC","Coastal Bend District",2530,"Sinton: First","No"]
[null,null,null,null,null,null,null,null,null,null,null,null,null,null,null,null,null,null,null,null,null,null,null,null,null,null,null,null,null,null,null,null,null,null,null,null,null,null,null,null,null,null,null,"Rang, Susan","FE","Senior Pastor",1,null,"Skidmore UMC","Coastal Bend District",2540,"Skidmore","No"]
[null,null,null,null,null,null,null,null,null,null,null,null,null,null,null,null,null,null,null,null,null,null,null,null,null,null,null,null,null,null,null,null,null,null,null,null,null,null,null,null,null,null,null,"Ratliff, Matthew","FL","Senior Pastor",1,null,"Smithville: First","Crossroads District",3650,"Smithville: First","No"]
[null,null,null,null,null,null,null,null,null,null,null,null,null,null,null,null,null,null,null,null,null,null,null,null,null,null,null,null,null,null,null,null,null,null,null,null,null,null,null,null,null,null,null,"Reames, Travis","OR","Senior Pastor",0.5,null,"Sonora UMC","West District",7380,"Sonora","No"]
[null,null,null,null,null,null,null,null,null,null,null,null,null,null,null,null,null,null,null,null,null,null,null,null,null,null,null,null,null,null,null,null,null,null,null,null,null,null,null,null,null,null,null,"Reed, Ryan Keith","PL","Senior Pastor",0.25,null,"Staples","Crossroads District",3660,"Staples","No"]
[null,null,null,null,null,null,null,null,null,null,null,null,null,null,null,null,null,null,null,null,null,null,null,null,null,null,null,null,null,null,null,null,null,null,null,null,null,null,null,null,null,null,null,"Reyes, Wilda","FL","Senior Pastor",1,null,"Taft","Coastal Bend District",2550,"Taft","No"]
[null,null,null,null,null,null,null,null,null,null,null,null,null,null,null,null,null,null,null,null,null,null,null,null,null,null,null,null,null,null,null,null,null,null,null,null,null,null,null,null,null,null,null,"Rignack, Jose","OE","Senior Pastor",0.5,null,"Telferner","Coastal Bend District",2230,"Telferner","No"]
[null,null,null,null,null,null,null,null,null,null,null,null,null,null,null,null,null,null,null,null,null,null,null,null,null,null,null,null,null,null,null,null,null,null,null,null,null,null,null,null,null,null,null,"Ritchie, Frank","PL","Assoc. Pastor",0.25,null,"Universal City","Las Misiones District",6680,"Universal City","No"]
[null,null,null,null,null,null,null,null,null,null,null,null,null,null,null,null,null,null,null,null,null,null,null,null,null,null,null,null,null,null,null,null,null,null,null,null,null,null,null,null,null,null,null,"Robinson, Ted","PL","Senior Pastor",0.5,null,"Uvalde: La Divina Trinidad","Hill Country District",5400,"Uvalde La Divina Trinidad","Yes"]
[null,null,null,null,null,null,null,null,null,null,null,null,null,null,null,null,null,null,null,null,null,null,null,null,null,null,null,null,null,null,null,null,null,null,null,null,null,null,null,null,null,null,null,"Roe, William Grady","RE","Senior Pastor",0.5,null,"V: First UMC","Crossroads District",3690,"Victoria: First","No"]
[null,null,null,null,null,null,null,null,null,null,null,null,null,null,null,null,null,null,null,null,null,null,null,null,null,null,null,null,null,null,null,null,null,null,null,null,null,null,null,null,null,null,null,"Rogers, John Gavin","FL","Assoc. Pastor",1,null,"V: Webster Chapel","Crossroads District",3710,"Victoria: Webster Chapel","No"]
[null,null,null,null,null,null,null,null,null,null,null,null,null,null,null,null,null,null,null,null,null,null,null,null,null,null,null,null,null,null,null,null,null,null,null,null,null,null,null,null,null,null,null,"Rohlfs, Carl Walter","RE","Senior Pastor",0.5,null,"Valley Spring","Hill Country District",5410,"Valley Spring","No"]
[null,null,null,null,null,null,null,null,null,null,null,null,null,null,null,null,null,null,null,null,null,null,null,null,null,null,null,null,null,null,null,null,null,null,null,null,null,null,null,null,null,null,null,"Rojas, Federico","SY","Supply Pastor",0.25,null,"Veribest","West District",7410,"Veribest UMC","No"]
[null,null,null,null,null,null,null,null,null,null,null,null,null,null,null,null,null,null,null,null,null,null,null,null,null,null,null,null,null,null,null,null,null,null,null,null,null,null,null,null,null,null,null,"Romero, Herman Lee","FE","Senior Pastor",1,null,"Violet Crown City Church","Capital District",1040,"Violet Crown City Church","No"]
[null,null,null,null,null,null,null,null,null,null,null,null,null,null,null,null,null,null,null,null,null,null,null,null,null,null,null,null,null,null,null,null,null,null,null,null,null,null,null,null,null,null,null,"Rubio, Ricardo","FE","Senior Pastor",1,null,"Waco: Latin American/Temple: El Divino Salvador","Capital District",1480,"Waco: Latin American","Yes","Temple: El Divino Salvador","Yes"]
[null,null,null,null,null,null,null,null,null,null,null,null,null,null,null,null,null,null,null,null,null,null,null,null,null,null,null,null,null,null,null,null,null,null,null,null,null,null,null,null,null,null,null,"Ruiz, Edgardo","FL","Senior Pastor",1,null,"Walnut","Hill Country District",5420,"Walnut","No"]
[null,null,null,null,null,null,null,null,null,null,null,null,null,null,null,null,null,null,null,null,null,null,null,null,null,null,null,null,null,null,null,null,null,null,null,null,null,null,null,null,null,null,null,"Rush, Lisa Winnek","FD","Senior Pastor",1,null,"Weimer","Crossroads District",3730,"Weimar: First","No"]
[null,null,null,null,null,null,null,null,null,null,null,null,null,null,null,null,null,null,null,null,null,null,null,null,null,null,null,null,null,null,null,null,null,null,null,null,null,null,null,null,null,null,null,"Saenz III, Ruben","FL","Senior Pastor",1,null,"Weslaco:First/El Valle District","El Valle District",4390,"Weslaco: First","No","El Valle District","No"]
[null,null,null,null,null,null,null,null,null,null,null,null,null,null,null,null,null,null,null,null,null,null,null,null,null,null,null,null,null,null,null,null,null,null,null,null,null,null,null,null,null,null,null,"Salmi, Michael Todd","FE","Campus Minister",1,null,"Wimberley UMC","Hill Country District",5430,"Wimberley","No"]
[null,null,null,null,null,null,null,null,null,null,null,null,null,null,null,null,null,null,null,null,null,null,null,null,null,null,null,null,null,null,null,null,null,null,null,null,null,null,null,null,null,null,null,"Sanchez, David","FE","Senior Pastor",1,null,"Winchester","Crossroads District",3740,"Winchester","No"]
[null,null,null,null,null,null,null,null,null,null,null,null,null,null,null,null,null,null,null,null,null,null,null,null,null,null,null,null,null,null,null,null,null,null,null,null,null,null,null,null,null,null,null,"Sanderford, Ricky Lynn","FE","District Superintendent",1,null,"Woodsboro: Faith United","Coastal Bend District",2570,"Woodsboro: Faith United","No"]
[null,null,null,null,null,null,null,null,null,null,null,null,null,null,null,null,null,null,null,null,null,null,null,null,null,null,null,null,null,null,null,null,null,null,null,null,null,null,null,null,null,null,null,"Sanders, Stephen Albert","FE","Senior Pastor",1,null,"Yancey","Las Misiones District",5440,"Yancey","No"]
[null,null,null,null,null,null,null,null,null,null,null,null,null,null,null,null,null,null,null,null,null,null,null,null,null,null,null,null,null,null,null,null,null,null,null,null,null,null,null,null,null,null,null,"Sattiewhite, Pamela","PL","Senior Pastor",0.25,null,"Yoakum/Hope","Crossroads District",3750,"Yoakum: First","No","Hope","No"]
[null,null,null,null,null,null,null,null,null,null,null,null,null,null,null,null,null,null,null,null,null,null,null,null,null,null,null,null,null,null,null,null,null,null,null,null,null,null,null,null,null,null,null,"Schendel, James Ray","RA","Senior Pastor",1,null,"Yorktown: First/ Runge","Crossroads District",3760,"Yorktown: First","No","Runge","No"]
[null,null,null,null,null,null,null,null,null,null,null,null,null,null,null,null,null,null,null,null,null,null,null,null,null,null,null,null,null,null,null,null,null,null,null,null,null,null,null,null,null,null,null,"Schwarz, Victoria","FD","Assoc. Pastor",0.25,null,"Zapata","El Valle District",4410,"Zapata","No"]
[null,null,null,null,null,null,null,null,null,null,null,null,null,null,null,null,null,null,null,null,null,null,null,null,null,null,null,null,null,null,null,null,null,null,null,null,null,null,null,null,null,null,null,"Scott, Lon Howard","PL","Senior Pastor",0.5]
[null,null,null,null,null,null,null,null,null,null,null,null,null,null,null,null,null,null,null,null,null,null,null,null,null,null,null,null,null,null,null,null,null,null,null,null,null,null,null,null,null,null,null,"Segovia, Gustavo","LP","Senior Pastor",0.75]
[null,null,null,null,null,null,null,null,null,null,null,null,null,null,null,null,null,null,null,null,null,null,null,null,null,null,null,null,null,null,null,null,null,null,null,null,null,null,null,null,null,null,null,"Select Pastor's Name"]
[null,null,null,null,null,null,null,null,null,null,null,null,null,null,null,null,null,null,null,null,null,null,null,null,null,null,null,null,null,null,null,null,null,null,null,null,null,null,null,null,null,null,null,"Shelly, Dinah Smith","FE","Senior Pastor",1]
[null,null,null,null,null,null,null,null,null,null,null,null,null,null,null,null,null,null,null,null,null,null,null,null,null,null,null,null,null,null,null,null,null,null,null,null,null,null,null,null,null,null,null,"Simmons, Edward B","OD","Assoc. Pastor",0.75]
[null,null,null,null,null,null,null,null,null,null,null,null,null,null,null,null,null,null,null,null,null,null,null,null,null,null,null,null,null,null,null,null,null,null,null,null,null,null,null,null,null,null,null,"Smith, Darrell Lord","FL","Assoc. Pastor",1]
[null,null,null,null,null,null,null,null,null,null,null,null,null,null,null,null,null,null,null,null,null,null,null,null,null,null,null,null,null,null,null,null,null,null,null,null,null,null,null,null,null,null,null,"Smith, Julie Ann","LY","Deaconess",1]
[null,null,null,null,null,null,null,null,null,null,null,null,null,null,null,null,null,null,null,null,null,null,null,null,null,null,null,null,null,null,null,null,null,null,null,null,null,null,null,null,null,null,null,"Smith, Lindsey Troxell","OR","Senior Pastor",0.75]
[null,null,null,null,null,null,null,null,null,null,null,null,null,null,null,null,null,null,null,null,null,null,null,null,null,null,null,null,null,null,null,null,null,null,null,null,null,null,null,null,null,null,null,"Snape, Jonathan","FE","Senior Pastor",1]
[null,null,null,null,null,null,null,null,null,null,null,null,null,null,null,null,null,null,null,null,null,null,null,null,null,null,null,null,null,null,null,null,null,null,null,null,null,null,null,null,null,null,null,"Snyder, Donald Lee","RA","Assoc. Pastor",0.25]
[null,null,null,null,null,null,null,null,null,null,null,null,null,null,null,null,null,null,null,null,null,null,null,null,null,null,null,null,null,null,null,null,null,null,null,null,null,null,null,null,null,null,null,"Stapleton, Carolyn Louise","RE","Senior Pastor",0.5]
[null,null,null,null,null,null,null,null,null,null,null,null,null,null,null,null,null,null,null,null,null,null,null,null,null,null,null,null,null,null,null,null,null,null,null,null,null,null,null,null,null,null,null,"Stewart, Abel C","FD","Assoc. Pastor",1]
[null,null,null,null,null,null,null,null,null,null,null,null,null,null,null,null,null,null,null,null,null,null,null,null,null,null,null,null,null,null,null,null,null,null,null,null,null,null,null,null,null,null,null,"Stone, Catherine Linea","FD","Assoc. Pastor",1]
[null,null,null,null,null,null,null,null,null,null,null,null,null,null,null,null,null,null,null,null,null,null,null,null,null,null,null,null,null,null,null,null,null,null,null,null,null,null,null,null,null,null,null,"Straus, Lisa Moulton","FE","Senior Pastor",1]
[null,null,null,null,null,null,null,null,null,null,null,null,null,null,null,null,null,null,null,null,null,null,null,null,null,null,null,null,null,null,null,null,null,null,null,null,null,null,null,null,null,null,null,"Strehli, Tamara Jean","FE","Assoc. Pastor",1]
[null,null,null,null,null,null,null,null,null,null,null,null,null,null,null,null,null,null,null,null,null,null,null,null,null,null,null,null,null,null,null,null,null,null,null,null,null,null,null,null,null,null,null,"Strieb, Donna Lee","RD","Assoc. Pastor",0.25]
[null,null,null,null,null,null,null,null,null,null,null,null,null,null,null,null,null,null,null,null,null,null,null,null,null,null,null,null,null,null,null,null,null,null,null,null,null,null,null,null,null,null,null,"Stringer, Clifton Walker","FE","Senior Pastor",1]
[null,null,null,null,null,null,null,null,null,null,null,null,null,null,null,null,null,null,null,null,null,null,null,null,null,null,null,null,null,null,null,null,null,null,null,null,null,null,null,null,null,null,null,"Surdy, Jason","PE","Senior Pastor",1]
[null,null,null,null,null,null,null,null,null,null,null,null,null,null,null,null,null,null,null,null,null,null,null,null,null,null,null,null,null,null,null,null,null,null,null,null,null,null,null,null,null,null,null,"Sweet, James Edgar","RE","Program Director",0.5]
[null,null,null,null,null,null,null,null,null,null,null,null,null,null,null,null,null,null,null,null,null,null,null,null,null,null,null,null,null,null,null,null,null,null,null,null,null,null,null,null,null,null,null,"Swetman, Michael","PL","Senior Pastor",0.75]
[null,null,null,null,null,null,null,null,null,null,null,null,null,null,null,null,null,null,null,null,null,null,null,null,null,null,null,null,null,null,null,null,null,null,null,null,null,null,null,null,null,null,null,"Teeter, Rusty Lynn","FE","Senior Pastor",1]
[null,null,null,null,null,null,null,null,null,null,null,null,null,null,null,null,null,null,null,null,null,null,null,null,null,null,null,null,null,null,null,null,null,null,null,null,null,null,null,null,null,null,null,"Thomas, Spencer Kurt","FL","Assoc. Pastor",1]
[null,null,null,null,null,null,null,null,null,null,null,null,null,null,null,null,null,null,null,null,null,null,null,null,null,null,null,null,null,null,null,null,null,null,null,null,null,null,null,null,null,null,null,"Thorpe-Johnson, Suzette","PL","Assoc. Pastor",0.5]
[null,null,null,null,null,null,null,null,null,null,null,null,null,null,null,null,null,null,null,null,null,null,null,null,null,null,null,null,null,null,null,null,null,null,null,null,null,null,null,null,null,null,null,"Toalson, Katie L.","FL","Senior Pastor",1]
[null,null,null,null,null,null,null,null,null,null,null,null,null,null,null,null,null,null,null,null,null,null,null,null,null,null,null,null,null,null,null,null,null,null,null,null,null,null,null,null,null,null,null,"Tobias, Joseph","SY","Senior Pastor",1]
[null,null,null,null,null,null,null,null,null,null,null,null,null,null,null,null,null,null,null,null,null,null,null,null,null,null,null,null,null,null,null,null,null,null,null,null,null,null,null,null,null,null,null,"Tognetti, Joseph","FE","Senior Pastor",1]
[null,null,null,null,null,null,null,null,null,null,null,null,null,null,null,null,null,null,null,null,null,null,null,null,null,null,null,null,null,null,null,null,null,null,null,null,null,null,null,null,null,null,null,"Toomire, Kyle Robert","FE","Senior Pastor",1]
[null,null,null,null,null,null,null,null,null,null,null,null,null,null,null,null,null,null,null,null,null,null,null,null,null,null,null,null,null,null,null,null,null,null,null,null,null,null,null,null,null,null,null,"Tracy, Janet Deitiker","OE","Senior Pastor",1]
[null,null,null,null,null,null,null,null,null,null,null,null,null,null,null,null,null,null,null,null,null,null,null,null,null,null,null,null,null,null,null,null,null,null,null,null,null,null,null,null,null,null,null,"Troy, Anna Katherine","FD","Church & Community Worker",1]
[null,null,null,null,null,null,null,null,null,null,null,null,null,null,null,null,null,null,null,null,null,null,null,null,null,null,null,null,null,null,null,null,null,null,null,null,null,null,null,null,null,null,null,"Tyndall, Mandy Stanford","PL","Senior Pastor",0.5]
[null,null,null,null,null,null,null,null,null,null,null,null,null,null,null,null,null,null,null,null,null,null,null,null,null,null,null,null,null,null,null,null,null,null,null,null,null,null,null,null,null,null,null,"Valle, Saul Israel","FE","Senior Pastor",1]
[null,null,null,null,null,null,null,null,null,null,null,null,null,null,null,null,null,null,null,null,null,null,null,null,null,null,null,null,null,null,null,null,null,null,null,null,null,null,null,null,null,null,null,"Van Pelt, Marshall Derek","FL","Assoc. Pastor",1]
[null,null,null,null,null,null,null,null,null,null,null,null,null,null,null,null,null,null,null,null,null,null,null,null,null,null,null,null,null,null,null,null,null,null,null,null,null,null,null,null,null,null,null,"Vazquez, Maribel","FE","Senior Pastor",1]
[null,null,null,null,null,null,null,null,null,null,null,null,null,null,null,null,null,null,null,null,null,null,null,null,null,null,null,null,null,null,null,null,null,null,null,null,null,null,null,null,null,null,null,"Vernone, Michelle Jacquelynn","FE","Senior Pastor",1]
[null,null,null,null,null,null,null,null,null,null,null,null,null,null,null,null,null,null,null,null,null,null,null,null,null,null,null,null,null,null,null,null,null,null,null,null,null,null,null,null,null,null,null,"Villalpando-Stewart, Guadalupe T.","FE","Senior Pastor",1]
[null,null,null,null,null,null,null,null,null,null,null,null,null,null,null,null,null,null,null,null,null,null,null,null,null,null,null,null,null,null,null,null,null,null,null,null,null,null,null,null,null,null,null,"Waddle, Robert Charles","FL","Senior Pastor",1]
[null,null,null,null,null,null,null,null,null,null,null,null,null,null,null,null,null,null,null,null,null,null,null,null,null,null,null,null,null,null,null,null,null,null,null,null,null,null,null,null,null,null,null,"Waller, Kendall A","FE","Executive Director",1]
[null,null,null,null,null,null,null,null,null,null,null,null,null,null,null,null,null,null,null,null,null,null,null,null,null,null,null,null,null,null,null,null,null,null,null,null,null,null,null,null,null,null,null,"Washington, Maurice Billy","RH","Senior Pastor",0.75]
[null,null,null,null,null,null,null,null,null,null,null,null,null,null,null,null,null,null,null,null,null,null,null,null,null,null,null,null,null,null,null,null,null,null,null,null,null,null,null,null,null,null,null,"Waters, Sharon Hennigan","OE","Senior Pastor",0.5]
[null,null,null,null,null,null,null,null,null,null,null,null,null,null,null,null,null,null,null,null,null,null,null,null,null,null,null,null,null,null,null,null,null,null,null,null,null,null,null,null,null,null,null,"Watkinson, Allison","SY","Senior Pastor",0.25]
[null,null,null,null,null,null,null,null,null,null,null,null,null,null,null,null,null,null,null,null,null,null,null,null,null,null,null,null,null,null,null,null,null,null,null,null,null,null,null,null,null,null,null,"Weatherston, Janet Laurie","FL","Assoc. Pastor",1]
[null,null,null,null,null,null,null,null,null,null,null,null,null,null,null,null,null,null,null,null,null,null,null,null,null,null,null,null,null,null,null,null,null,null,null,null,null,null,null,null,null,null,null,"Welborn, Teresa Gayle","FE","Senior Pastor",1]
[null,null,null,null,null,null,null,null,null,null,null,null,null,null,null,null,null,null,null,null,null,null,null,null,null,null,null,null,null,null,null,null,null,null,null,null,null,null,null,null,null,null,null,"Wicke, Jerimey Joshua","FE","Senior Pastor",1]
[null,null,null,null,null,null,null,null,null,null,null,null,null,null,null,null,null,null,null,null,null,null,null,null,null,null,null,null,null,null,null,null,null,null,null,null,null,null,null,null,null,null,null,"Williams, Willie Mae","RL","Senior Pastor",0.25]
[null,null,null,null,null,null,null,null,null,null,null,null,null,null,null,null,null,null,null,null,null,null,null,null,null,null,null,null,null,null,null,null,null,null,null,null,null,null,null,null,null,null,null,"Wilson, Holly Kristen Ebel","FE","Assoc. Pastor",1]
[null,null,null,null,null,null,null,null,null,null,null,null,null,null,null,null,null,null,null,null,null,null,null,null,null,null,null,null,null,null,null,null,null,null,null,null,null,null,null,null,null,null,null,"Woods, Diana","LY","Deaconess",1]
[null,null,null,null,null,null,null,null,null,null,null,null,null,null,null,null,null,null,null,null,null,null,null,null,null,null,null,null,null,null,null,null,null,null,null,null,null,null,null,null,null,null,null,"Woodson, Zettie Fennie","FL","Senior Pastor",1]
[null,null,null,null,null,null,null,null,null,null,null,null,null,null,null,null,null,null,null,null,null,null,null,null,null,null,null,null,null,null,null,null,null,null,null,null,null,null,null,null,null,null,null,"Zaiontz-Newcomer, Patricia Lee","RE","Senior Pastor",0.5]
[null,null,null,null,null,null,null,null,null,null,null,null,null,null,null,null,null,null,null,null,null,null,null,null,null,null,null,null,null,null,null,null,null,null,null,null,null,null,null,null,null,null,null,"Zamora, Carlos L.","RA","El Valle District",""]
[null,null,null,null,null,null,null,null,null,null,null,null,null,null,null,null,null,null,null,null,null,null,null,null,null,null,null,null,null,null,null,null,null,null,null,null,null,null,null,null,null,null,null,"Zermeno, Adrienne Lynn","FE","Senior Pastor",1]
[null,null,null,null,null,null,null,null,null,null,null,null,null,null,null,null,null,null,null,null,null,null,null,null,null,null,null,null,null,null,null,null,null,null,null,null,null,null,null,null,null,null,null,"Zumwalt, Darin","FL","Senior Pastor",1]

{"sheet":"2024 HealthFlex Rates","index":1,"n_rows":0,"n_cols":0,"rows_kept":0,"cut":false,"hidden":false,"merged":[]}